Workbook

Sheet Заставка

Sheet Меню

Sheet test
C9: Кнопка | D9: программное название | E9: лист расположения | F9: ожидаемый переход | G9: реальный переход | H9: Резюме
C10: товары | D10: CommandButton1 | E10: Лист2 | F10: Товары | H10: +
C11: продажи | D11: CommandButton2 | E11: Лист2 | F11: Продажи | H11: +
C12: поставки | D12: CommandButton3 | E12: Лист2 | F12: Поставки | H12: +
C13: доставка | D13: CommandButton4 | E13: Лист2 | F13: Доставка | H13: +
C14: сотрудники | D14: CommandButton5 | E14: Лист2 | F14: Сотрудники | H14: +
C15: начисление з/п | D15: CommandButton6 | E15: Лист2 | F15: Начисление з п | H15: +
C16: отчеты | D16: CommandButton7 | E16: Лист2 | F16: Отчеты | H16: +
C17: доступ | D17: CommandButton8 | E17: Лист2 | F17: Доступ | H17: +

Sheet Товары
B2: Код товара | C2: Наименование | D2: Цена | E2: Наценка
A3: Фурнитура | B3: 1 | C3: Стяжки | D3: 100 | E3: 0.1
B4: 2 | C4: Полкодержатели | D4: 200 | E4: 0.2
B5: 3 | C5: Петли | D5: 250 | E5: 0.1
B6: 4 | C6: Ручки | D6: 500 | E6: 0.1
B7: 5 | C7: Крючки | D7: 400 | E7: 0.1
B8: 6 | C8: Замки | D8: 60 | E8: 0.2
B9: 7 | C9: Системы для выдвижных ящиков | D9: 310 | E9: 0.15
B10: 8 | C10: Навесы для мебельных коробов | D10: 300 | E10: 0.15
B11: 9 | C11: Механизмы для раздвижных столов | D11: 300 | E11: 0.15
B12: 10 | C12: Стеллажные и гардеробные системы | D12: 500 | E12: 0.15
B13: 11 | C13: Кухонные комплектующие | D13: 800 | E13: 0.2
B14: 12 | C14: Раздвижные системы для шкафов-купе | D14: 220 | E14: 0.2
B15: 13 | C15: Наполнение для шкафов | D15: 150 | E15: 0.2
B16: 14 | C16: Раздвижные системы для межкомнатных дверей | D16: 3000 | E16: 0.1
B17: 15 | C17: Мебельное освещение | D17: 780 | E17: 0.199047619
B18: 16 | C18: Кромочные материалы | D18: 110 | E18: 0.2047619048
A20: Сборка | B20: 17 | C20: Прихожие | D20: 8000 | E20: 0.2
B21: 18 | C21: Стенки мебельные | D21: 12000 | E21: 0.2
B22: 19 | C22: Детская мебель | D22: 9500 | E22: 0.2
B23: 20 | C23: Мебель для спальни | D23: 5000 | E23: 0.2
B24: 21 | C24: Кровати в спальню | D24: 13500 | E24: 0.2
B25: 22 | C25: Ванные комнаты | D25: 6000 | E25: 0.2
B26: 23 | C26: Гардеробные комнаты | D26: 3000 | E26: 0.2
B27: 24 | C27: Шкафы распашные | D27: 4200 | E27: 0.2
B28: 25 | C28: Мебель для библиотеки | D28: 5100 | E28: 0.2
B29: 26 | C29: Коммерческая мебель | D29: 14000 | E29: 0.2

Sheet Продажи
Q5: Дата продажи
D6: Дата продажи | E6: Наименование | F6: Кол-во | G6: Цена | H6: Сумма | Q6: Код товара
E7: Наполнение для шкафов | Q7: Наименование
Q8: Количество
Q9: Цена
Q10: Сумма
C11: Дата продажи | D11: Код товара | E11: Наименование | F11: Количество | G11: Цена | H11: Сумма | Q11: 4
C12: 2009-10-10 | D12: 1 | E12: =VLOOKUP(D12,Справочник_товары,2) -> Стяжки | F12: 15 | G12: =VLOOKUP(D12,Справочник_товары,3) -> 100 | H12: =G12*F12 -> 1500 | Q12: 1 | R12: Стяжки | S12: 100 | T12: 0.1
C13: 2009-10-28 | D13: 1 | E13: Стяжки | F13: 12 | G13: 100 | H13: 1200 | Q13: 2 | R13: Полкодержатели | S13: 200 | T13: 0.2
C14: 2009-10-10 | D14: 1 | E14: Стяжки | F14: 15 | G14: 100 | H14: 1500 | Q14: 3 | R14: Петли | S14: 250 | T14: 0.1
C15: 2009-10-03 | D15: 1 | E15: Стяжки | F15: 18 | G15: 100 | H15: 1800 | Q15: 4 | R15: Ручки | S15: 500 | T15: 0.1
C16: 2009-10-14 | D16: 1 | E16: Стяжки | F16: 21 | G16: 100 | H16: 2100 | Q16: 5 | R16: Крючки | S16: 400 | T16: 0.1
C17: 2009-10-17 | D17: 1 | E17: Стяжки | F17: 1 | G17: 100 | H17: 100 | Q17: 6 | R17: Замки | S17: 60 | T17: 0.2
C18: 2009-10-15 | D18: 2 | E18: Полкодержатели | F18: 4 | G18: 200 | H18: 800 | Q18: 7 | R18: Системы для выдвижных ящиков | S18: 310 | T18: 0.15
C19: 2009-10-24 | D19: 2 | E19: Полкодержатели | F19: 13 | G19: 200 | H19: 2600 | Q19: 8 | R19: Навесы для мебельных коробов | S19: 300 | T19: 0.15
C20: 2009-10-12 | D20: 2 | E20: Полкодержатели | F20: 13 | G20: 200 | H20: 2600 | Q20: 9 | R20: Механизмы для раздвижных столов | S20: 300 | T20: 0.15
C21: 2009-10-25 | D21: 2 | E21: Полкодержатели | F21: 4 | G21: 200 | H21: 800 | Q21: 10 | R21: Стеллажные и гардеробные системы | S21: 500 | T21: 0.15
C22: 2009-10-26 | D22: 2 | E22: Полкодержатели | F22: 12 | G22: 200 | H22: 2400 | Q22: 11 | R22: Кухонные комплектующие | S22: 800 | T22: 0.2
C23: 2009-10-06 | D23: 2 | E23: Полкодержатели | F23: 18 | G23: 200 | H23: 3600 | Q23: 12 | R23: Раздвижные системы для шкафов-купе | S23: 220 | T23: 0.2
C24: 2009-10-11 | D24: 2 | E24: Полкодержатели | F24: 23 | G24: 200 | H24: 4600 | Q24: 13 | R24: Наполнение для шкафов | S24: 150 | T24: 0.2
C25: 2009-10-23 | D25: 2 | E25: Полкодержатели | F25: 17 | G25: 200 | H25: 3400 | Q25: 14 | R25: Раздвижные системы для межкомнатных дверей | S25: 3000 | T25: 0.1
C26: 2009-10-15 | D26: 2 | E26: Полкодержатели | F26: 13 | G26: 200 | H26: 2600 | Q26: 15 | R26: Мебельное освещение | S26: 780 | T26: 0.199047619
C27: 2009-10-24 | D27: 2 | E27: Полкодержатели | F27: 4 | G27: 200 | H27: 800 | Q27: 16 | R27: Кромочные материалы | S27: 110 | T27: 0.2047619048
C28: 2009-10-06 | D28: 3 | E28: Петли | F28: 2 | G28: 250 | H28: 500
C29: 2009-10-01 | D29: 3 | E29: Петли | F29: 7 | G29: 250 | H29: 1750 | Q29: 17 | R29: Прихожие | S29: 8000 | T29: 0.2
C30: 2009-10-29 | D30: 3 | E30: Петли | F30: 23 | G30: 250 | H30: 5750 | Q30: 18 | R30: Стенки мебельные | S30: 12000 | T30: 0.2
C31: 2009-10-04 | D31: 3 | E31: Петли | F31: 16 | G31: 250 | H31: 4000 | Q31: 19 | R31: Детская мебель | S31: 9500 | T31: 0.2
C32: 2009-10-11 | D32: 3 | E32: Петли | F32: 17 | G32: 250 | H32: 4250 | Q32: 20 | R32: Мебель для спальни | S32: 5000 | T32: 0.2
C33: 2009-10-25 | D33: 3 | E33: Петли | F33: 8 | G33: 250 | H33: 2000 | Q33: 21 | R33: Кровати в спальню | S33: 13500 | T33: 0.2
C34: 2009-10-27 | D34: 3 | E34: Петли | F34: 9 | G34: 250 | H34: 2250 | Q34: 22 | R34: Ванные комнаты | S34: 6000 | T34: 0.2
C35: 2009-10-21 | D35: 3 | E35: Петли | F35: 12 | G35: 250 | H35: 3000 | Q35: 23 | R35: Гардеробные комнаты | S35: 3000 | T35: 0.2
C36: 2009-10-30 | D36: 3 | E36: Петли | F36: 3 | G36: 250 | H36: 750 | Q36: 24 | R36: Шкафы распашные | S36: 4200 | T36: 0.2
C37: 2009-10-22 | D37: 3 | E37: Петли | F37: 14 | G37: 250 | H37: 3500 | Q37: 25 | R37: Мебель для библиотеки | S37: 5100 | T37: 0.2
C38: 2009-10-26 | D38: 3 | E38: Петли | F38: 15 | G38: 250 | H38: 3750 | Q38: 26 | R38: Коммерческая мебель | S38: 14000 | T38: 0.2
C39: 2009-10-27 | D39: 3 | E39: Петли | F39: 13 | G39: 250 | H39: 3250
C40: 2009-10-13 | D40: 3 | E40: Петли | F40: 14 | G40: 250 | H40: 3500
C41: 2009-10-05 | D41: 4 | E41: Ручки | F41: 19 | G41: 500 | H41: 9500
C42: 2009-10-18 | D42: 4 | E42: Ручки | F42: 4 | G42: 500 | H42: 2000
C43: 2009-10-23 | D43: 4 | E43: Ручки | F43: 8 | G43: 500 | H43: 4000
C44: 2009-10-15 | D44: 4 | E44: Ручки | F44: 16 | G44: 500 | H44: 8000
C45: 2009-10-17 | D45: 4 | E45: Ручки | F45: 13 | G45: 500 | H45: 6500
C46: 2009-10-22 | D46: 4 | E46: Ручки | F46: 11 | G46: 500 | H46: 5500
C47: 2009-10-26 | D47: 4 | E47: Ручки | F47: 15 | G47: 500 | H47: 7500
C48: 2009-10-17 | D48: 4 | E48: Ручки | F48: 14 | G48: 500 | H48: 7000
C49: 2009-10-16 | D49: 4 | E49: Ручки | F49: 3 | G49: 500 | H49: 1500
C50: 2009-10-03 | D50: 4 | E50: Ручки | F50: 7 | G50: 500 | H50: 3500
C51: 2009-10-14 | D51: 4 | E51: Ручки | F51: 14 | G51: 500 | H51: 7000
C52: 2009-10-16 | D52: 4 | E52: Ручки | F52: 8 | G52: 500 | H52: 4000
C53: 2009-10-16 | D53: 4 | E53: Ручки | F53: 3 | G53: 500 | H53: 1500
C54: 2009-10-11 | D54: 4 | E54: Ручки | F54: 13 | G54: 500 | H54: 6500
C55: 2009-10-08 | D55: 4 | E55: Ручки | F55: 15 | G55: 500 | H55: 7500
C56: 2009-10-24 | D56: 5 | E56: Крючки | F56: 18 | G56: 400 | H56: 7200
C57: 2009-10-30 | D57: 5 | E57: Крючки | F57: 22 | G57: 400 | H57: 8800
C58: 2009-10-21 | D58: 5 | E58: Крючки | F58: 14 | G58: 400 | H58: 5600
C59: 2009-10-12 | D59: 5 | E59: Крючки | F59: 22 | G59: 400 | H59: 8800
C60: 2009-10-03 | D60: 5 | E60: Крючки | F60: 15 | G60: 400 | H60: 6000
C61: 2009-10-17 | D61: 5 | E61: Крючки | F61: 1 | G61: 400 | H61: 400
C62: 2009-10-15 | D62: 5 | E62: Крючки | F62: 23 | G62: 400 | H62: 9200
C63: 2009-10-01 | D63: 5 | E63: Крючки | F63: 2 | G63: 400 | H63: 800
C64: 2009-10-02 | D64: 6 | E64: Замки | F64: 2 | G64: 60 | H64: 120
C65: 2009-10-20 | D65: 6 | E65: Замки | F65: 10 | G65: 60 | H65: 600
C66: 2009-10-15 | D66: 6 | E66: Замки | F66: 8 | G66: 60 | H66: 480
C67: 2009-10-09 | D67: 6 | E67: Замки | F67: 15 | G67: 60 | H67: 900
C68: 2009-10-22 | D68: 6 | E68: Замки | F68: 13 | G68: 60 | H68: 780
C69: 2009-10-03 | D69: 6 | E69: Замки | F69: 6 | G69: 60 | H69: 360
C70: 2009-10-07 | D70: 6 | E70: Замки | F70: 22 | G70: 60 | H70: 1320
C71: 2009-10-20 | D71: 6 | E71: Замки | F71: 7 | G71: 60 | H71: 420
C72: 2009-10-15 | D72: 6 | E72: Замки | F72: 9 | G72: 60 | H72: 540
C73: 2009-10-06 | D73: 6 | E73: Замки | F73: 18 | G73: 60 | H73: 1080
C74: 2009-10-30 | D74: 6 | E74: Замки | F74: 6 | G74: 60 | H74: 360
C75: 2009-10-13 | D75: 6 | E75: Замки | F75: 21 | G75: 60 | H75: 1260
C76: 2009-10-19 | D76: 6 | E76: =VLOOKUP(D76,Справочник_товары,2) -> Замки | F76: 15 | G76: =VLOOKUP(D76,Справочник_товары,3) -> 60 | H76: =G76*F76 -> 900
C77: 2009-10-21 | D77: 7 | E77: Системы для выдвижных ящиков | F77: 8 | G77: 310 | H77: 2480
C78: 2009-10-21 | D78: 7 | E78: Системы для выдвижных ящиков | F78: 2 | G78: 310 | H78: 620
C79: 2009-10-18 | D79: 7 | E79: Системы для выдвижных ящиков | F79: 22 | G79: 310 | H79: 6820
C80: 2009-10-01 | D80: 7 | E80: Системы для выдвижных ящиков | F80: 20 | G80: 310 | H80: 6200
C81: 2009-10-11 | D81: 7 | E81: Системы для выдвижных ящиков | F81: 22 | G81: 310 | H81: 6820
C82: 2009-10-21 | D82: 7 | E82: Системы для выдвижных ящиков | F82: 20 | G82: 310 | H82: 6200
C83: 2009-10-25 | D83: 7 | E83: Системы для выдвижных ящиков | F83: 9 | G83: 310 | H83: 2790
C84: 2009-10-26 | D84: 7 | E84: Системы для выдвижных ящиков | F84: 8 | G84: 310 | H84: 2480
C85: 2009-10-14 | D85: 7 | E85: Системы для выдвижных ящиков | F85: 7 | G85: 310 | H85: 2170
C86: 2009-10-21 | D86: 7 | E86: Системы для выдвижных ящиков | F86: 20 | G86: 310 | H86: 6200
C87: 2009-10-19 | D87: 7 | E87: Системы для выдвижных ящиков | F87: 23 | G87: 310 | H87: 7130
C88: 2009-10-04 | D88: 8 | E88: Навесы для мебельных коробов | F88: 2 | G88: 300 | H88: 600
C89: 2009-10-16 | D89: 8 | E89: Навесы для мебельных коробов | F89: 4 | G89: 300 | H89: 1200
C90: 2009-10-26 | D90: 8 | E90: Навесы для мебельных коробов | F90: 9 | G90: 300 | H90: 2700
C91: 2009-10-07 | D91: 8 | E91: Навесы для мебельных коробов | F91: 23 | G91: 300 | H91: 6900
C92: 2009-10-20 | D92: 8 | E92: Навесы для мебельных коробов | F92: 7 | G92: 300 | H92: 2100
C93: 2009-10-14 | D93: 8 | E93: Навесы для мебельных коробов | F93: 14 | G93: 300 | H93: 4200
C94: 2009-10-15 | D94: 8 | E94: Навесы для мебельных коробов | F94: 19 | G94: 300 | H94: 5700
C95: 2009-10-26 | D95: 8 | E95: Навесы для мебельных коробов | F95: 6 | G95: 300 | H95: 1800
C96: 2009-10-27 | D96: 8 | E96: Навесы для мебельных коробов | F96: 16 | G96: 300 | H96: 4800
C97: 2009-10-18 | D97: 8 | E97: Навесы для мебельных коробов | F97: 11 | G97: 300 | H97: 3300
C98: 2009-10-23 | D98: 8 | E98: Навесы для мебельных коробов | F98: 16 | G98: 300 | H98: 4800
C99: 2009-10-18 | D99: 8 | E99: Навесы для мебельных коробов | F99: 10 | G99: 300 | H99: 3000
C100: 2009-10-11 | D100: 8 | E100: Навесы для мебельных коробов | F100: 9 | G100: 300 | H100: 2700
C101: 2009-10-05 | D101: 9 | E101: Механизмы для раздвижных столов | F101: 16 | G101: 300 | H101: 4800
C102: 2009-10-08 | D102: 9 | E102: Механизмы для раздвижных столов | F102: 6 | G102: 300 | H102: 1800
C103: 2009-10-20 | D103: 9 | E103: Механизмы для раздвижных столов | F103: 23 | G103: 300 | H103: 6900
C104: 2009-10-28 | D104: 9 | E104: Механизмы для раздвижных столов | F104: 11 | G104: 300 | H104: 3300
C105: 2009-10-01 | D105: 9 | E105: Механизмы для раздвижных столов | F105: 13 | G105: 300 | H105: 3900
C106: 2009-10-07 | D106: 9 | E106: Механизмы для раздвижных столов | F106: 22 | G106: 300 | H106: 6600
C107: 2009-10-13 | D107: 9 | E107: Механизмы для раздвижных столов | F107: 5 | G107: 300 | H107: 1500
C108: 2009-10-07 | D108: 9 | E108: Механизмы для раздвижных столов | F108: 8 | G108: 300 | H108: 2400
C109: 2009-10-19 | D109: 9 | E109: Механизмы для раздвижных столов | F109: 17 | G109: 300 | H109: 5100
C110: 2009-10-08 | D110: 9 | E110: Механизмы для раздвижных столов | F110: 16 | G110: 300 | H110: 4800
C111: 2009-10-19 | D111: 9 | E111: Механизмы для раздвижных столов | F111: 18 | G111: 300 | H111: 5400
C112: 2009-10-30 | D112: 9 | E112: Механизмы для раздвижных столов | F112: 9 | G112: 300 | H112: 2700
C113: 2009-10-07 | D113: 9 | E113: Механизмы для раздвижных столов | F113: 10 | G113: 300 | H113: 3000
C114: 2009-10-20 | D114: 9 | E114: Механизмы для раздвижных столов | F114: 7 | G114: 300 | H114: 2100
C115: 2009-10-22 | D115: 9 | E115: Механизмы для раздвижных столов | F115: 20 | G115: 300 | H115: 6000
C116: 2009-10-29 | D116: 9 | E116: Механизмы для раздвижных столов | F116: 18 | G116: 300 | H116: 5400
C117: 2009-10-22 | D117: 10 | E117: Стеллажные и гардеробные системы | F117: 15 | G117: 500 | H117: 7500
C118: 2009-10-17 | D118: 10 | E118: Стеллажные и гардеробные системы | F118: 22 | G118: 500 | H118: 11000
C119: 2009-10-30 | D119: 10 | E119: Стеллажные и гардеробные системы | F119: 12 | G119: 500 | H119: 6000
C120: 2009-10-18 | D120: 10 | E120: Стеллажные и гардеробные системы | F120: 5 | G120: 500 | H120: 2500
C121: 2009-10-12 | D121: 10 | E121: Стеллажные и гардеробные системы | F121: 14 | G121: 500 | H121: 7000
C122: 2009-10-21 | D122: 10 | E122: Стеллажные и гардеробные системы | F122: 1 | G122: 500 | H122: 500
C123: 2009-10-12 | D123: 10 | E123: Стеллажные и гардеробные системы | F123: 16 | G123: 500 | H123: 8000
C124: 2009-10-04 | D124: 10 | E124: Стеллажные и гардеробные системы | F124: 4 | G124: 500 | H124: 2000
C125: 2009-10-23 | D125: 10 | E125: Стеллажные и гардеробные системы | F125: 4 | G125: 500 | H125: 2000
C126: 2009-10-22 | D126: 10 | E126: Стеллажные и гардеробные системы | F126: 23 | G126: 500 | H126: 11500
C127: 2009-10-29 | D127: 10 | E127: Стеллажные и гардеробные системы | F127: 17 | G127: 500 | H127: 8500
C128: 2009-10-22 | D128: 10 | E128: Стеллажные и гардеробные системы | F128: 3 | G128: 500 | H128: 1500
C129: 2009-10-21 | D129: 11 | E129: Кухонные комплектующие | F129: 23 | G129: 800 | H129: 18400
C130: 2009-10-24 | D130: 11 | E130: Кухонные комплектующие | F130: 5 | G130: 800 | H130: 4000
C131: 2009-10-06 | D131: 11 | E131: Кухонные комплектующие | F131: 20 | G131: 800 | H131: 16000
C132: 2009-10-27 | D132: 11 | E132: Кухонные комплектующие | F132: 6 | G132: 800 | H132: 4800
C133: 2009-10-06 | D133: 11 | E133: Кухонные комплектующие | F133: 6 | G133: 800 | H133: 4800
C134: 2009-10-07 | D134: 11 | E134: Кухонные комплектующие | F134: 16 | G134: 800 | H134: 12800
C135: 2009-10-25 | D135: 11 | E135: Кухонные комплектующие | F135: 16 | G135: 800 | H135: 12800
C136: 2009-10-18 | D136: 11 | E136: Кухонные комплектующие | F136: 11 | G136: 800 | H136: 8800
C137: 2009-10-22 | D137: 11 | E137: Кухонные комплектующие | F137: 22 | G137: 800 | H137: 17600
C138: 2009-10-16 | D138: 11 | E138: Кухонные комплектующие | F138: 14 | G138: 800 | H138: 11200
C139: 2009-10-04 | D139: 11 | E139: Кухонные комплектующие | F139: 23 | G139: 800 | H139: 18400
C140: 2009-10-08 | D140: 11 | E140: =VLOOKUP(D140,Справочник_товары,2) -> Кухонные комплектующие | F140: 12 | G140: =VLOOKUP(D140,Справочник_товары,3) -> 800 | H140: =G140*F140 -> 9600
C141: 2009-10-09 | D141: 11 | E141: Кухонные комплектующие | F141: 1 | G141: 800 | H141: 800
C142: 2009-10-28 | D142: 12 | E142: Раздвижные системы для шкафов-купе | F142: 1 | G142: 220 | H142: 220
C143: 2009-10-23 | D143: 12 | E143: Раздвижные системы для шкафов-купе | F143: 18 | G143: 220 | H143: 3960
C144: 2009-10-16 | D144: 12 | E144: Раздвижные системы для шкафов-купе | F144: 13 | G144: 220 | H144: 2860
C145: 2009-10-18 | D145: 12 | E145: Раздвижные системы для шкафов-купе | F145: 10 | G145: 220 | H145: 2200
C146: 2009-10-08 | D146: 12 | E146: Раздвижные системы для шкафов-купе | F146: 9 | G146: 220 | H146: 1980
C147: 2009-10-19 | D147: 12 | E147: Раздвижные системы для шкафов-купе | F147: 5 | G147: 220 | H147: 1100
C148: 2009-10-13 | D148: 12 | E148: Раздвижные системы для шкафов-купе | F148: 13 | G148: 220 | H148: 2860
C149: 2009-10-04 | D149: 12 | E149: Раздвижные системы для шкафов-купе | F149: 4 | G149: 220 | H149: 880
C150: 2009-10-17 | D150: 12 | E150: Раздвижные системы для шкафов-купе | F150: 18 | G150: 220 | H150: 3960
C151: 2009-10-14 | D151: 12 | E151: Раздвижные системы для шкафов-купе | F151: 21 | G151: 220 | H151: 4620
C152: 2009-10-04 | D152: 12 | E152: Раздвижные системы для шкафов-купе | F152: 12 | G152: 220 | H152: 2640
C153: 2009-10-03 | D153: 12 | E153: Раздвижные системы для шкафов-купе | F153: 8 | G153: 220 | H153: 1760
C154: 2009-10-08 | D154: 12 | E154: Раздвижные системы для шкафов-купе | F154: 2 | G154: 220 | H154: 440
C155: 2009-10-20 | D155: 13 | E155: =VLOOKUP(D155,Справочник_товары,2) -> Наполнение для шкафов | F155: 1 | G155: =VLOOKUP(D155,Справочник_товары,3) -> 150 | H155: =G155*F155 -> 150
C156: 2009-10-16 | D156: 13 | E156: Наполнение для шкафов | F156: 3 | G156: 150 | H156: 450
C157: 2009-10-16 | D157: 13 | E157: Наполнение для шкафов | F157: 6 | G157: 150 | H157: 900
C158: 2009-10-13 | D158: 13 | E158: Наполнение для шкафов | F158: 9 | G158: 150 | H158: 1350
C159: 2009-10-23 | D159: 13 | E159: Наполнение для шкафов | F159: 10 | G159: 150 | H159: 1500
C160: 2009-10-24 | D160: 13 | E160: Наполнение для шкафов | F160: 13 | G160: 150 | H160: 1950
C161: 2009-10-18 | D161: 13 | E161: Наполнение для шкафов | F161: 14 | G161: 150 | H161: 2100
C162: 2009-10-18 | D162: 13 | E162: Наполнение для шкафов | F162: 17 | G162: 150 | H162: 2550
C163: 2009-10-16 | D163: 13 | E163: Наполнение для шкафов | F163: 18 | G163: 150 | H163: 2700
C164: 2009-10-14 | D164: 13 | E164: Наполнение для шкафов | F164: 18 | G164: 150 | H164: 2700
C165: 2009-10-16 | D165: 13 | E165: Наполнение для шкафов | F165: 21 | G165: 150 | H165: 3150
C166: 2009-10-30 | D166: 14 | E166: Раздвижные системы для межкомнатных дверей | F166: 23 | G166: 3000 | H166: 69000
C167: 2009-10-12 | D167: 14 | E167: Раздвижные системы для межкомнатных дверей | F167: 10 | G167: 3000 | H167: 30000
C168: 2009-10-20 | D168: 14 | E168: Раздвижные системы для межкомнатных дверей | F168: 19 | G168: 3000 | H168: 57000
C169: 2009-10-27 | D169: 14 | E169: Раздвижные системы для межкомнатных дверей | F169: 18 | G169: 3000 | H169: 54000
C170: 2009-10-27 | D170: 14 | E170: Раздвижные системы для межкомнатных дверей | F170: 15 | G170: 3000 | H170: 45000
C171: 2009-10-23 | D171: 14 | E171: Раздвижные системы для межкомнатных дверей | F171: 6 | G171: 3000 | H171: 18000
C172: 2009-10-09 | D172: 14 | E172: Раздвижные системы для межкомнатных дверей | F172: 19 | G172: 3000 | H172: 57000
C173: 2009-10-28 | D173: 14 | E173: Раздвижные системы для межкомнатных дверей | F173: 15 | G173: 3000 | H173: 45000
C174: 2009-10-19 | D174: 14 | E174: Раздвижные системы для межкомнатных дверей | F174: 5 | G174: 3000 | H174: 15000
C175: 2009-10-18 | D175: 14 | E175: Раздвижные системы для межкомнатных дверей | F175: 1 | G175: 3000 | H175: 3000
C176: 2009-10-09 | D176: 14 | E176: Раздвижные системы для межкомнатных дверей | F176: 6 | G176: 3000 | H176: 18000
C177: 2009-10-01 | D177: 14 | E177: Раздвижные системы для межкомнатных дверей | F177: 18 | G177: 3000 | H177: 54000
C178: 2009-10-21 | D178: 14 | E178: Раздвижные системы для межкомнатных дверей | F178: 8 | G178: 3000 | H178: 24000
C179: 2009-10-25 | D179: 14 | E179: Раздвижные системы для межкомнатных дверей | F179: 20 | G179: 3000 | H179: 60000
C180: 2009-10-29 | D180: 14 | E180: Раздвижные системы для межкомнатных дверей | F180: 1 | G180: 3000 | H180: 3000
C181: 2009-10-05 | D181: 14 | E181: Раздвижные системы для межкомнатных дверей | F181: 6 | G181: 3000 | H181: 18000
C182: 2009-10-16 | D182: 14 | E182: Раздвижные системы для межкомнатных дверей | F182: 15 | G182: 3000 | H182: 45000
C183: 2009-10-09 | D183: 15 | E183: =VLOOKUP(D183,Справочник_товары,2) -> Мебельное освещение | F183: 4 | G183: =VLOOKUP(D183,Справочник_товары,3) -> 780 | H183: =G183*F183 -> 3120
C184: 2009-10-26 | D184: 15 | E184: Мебельное освещение | F184: 4 | G184: 780 | H184: 3120
C185: 2009-10-14 | D185: 15 | E185: Мебельное освещение | F185: 6 | G185: 780 | H185: 4680
C186: 2009-10-02 | D186: 15 | E186: Мебельное освещение | F186: 7 | G186: 780 | H186: 5460
C187: 2009-10-01 | D187: 15 | E187: Мебельное освещение | F187: 7 | G187: 780 | H187: 5460
C188: 2009-10-17 | D188: 15 | E188: Мебельное освещение | F188: 9 | G188: 780 | H188: 7020
C189: 2009-10-26 | D189: 15 | E189: Мебельное освещение | F189: 10 | G189: 780 | H189: 7800
C190: 2009-10-20 | D190: 15 | E190: Мебельное освещение | F190: 10 | G190: 780 | H190: 7800
C191: 2009-10-05 | D191: 15 | E191: Мебельное освещение | F191: 12 | G191: 780 | H191: 9360
C192: 2009-10-28 | D192: 15 | E192: Мебельное освещение | F192: 12 | G192: 780 | H192: 9360
C193: 2009-10-15 | D193: 15 | E193: Мебельное освещение | F193: 13 | G193: 780 | H193: 10140
C194: 2009-10-12 | D194: 15 | E194: Мебельное освещение | F194: 13 | G194: 780 | H194: 10140
C195: 2009-10-30 | D195: 15 | E195: Мебельное освещение | F195: 14 | G195: 780 | H195: 10920
C196: 2009-10-17 | D196: 15 | E196: Мебельное освещение | F196: 14 | G196: 780 | H196: 10920
C197: 2009-10-11 | D197: 15 | E197: Мебельное освещение | F197: 15 | G197: 780 | H197: 11700
C198: 2009-10-10 | D198: 15 | E198: Мебельное освещение | F198: 16 | G198: 780 | H198: 12480
C199: 2009-10-16 | D199: 15 | E199: Мебельное освещение | F199: 20 | G199: 780 | H199: 15600
C200: 2009-10-09 | D200: 15 | E200: Мебельное освещение | F200: 20 | G200: 780 | H200: 15600
C201: 2009-10-17 | D201: 15 | E201: Мебельное освещение | F201: 20 | G201: 780 | H201: 15600
C202: 2009-10-28 | D202: 15 | E202: Мебельное освещение | F202: 21 | G202: 780 | H202: 16380
C203: 2009-10-19 | D203: 15 | E203: Мебельное освещение | F203: 21 | G203: 780 | H203: 16380
C204: 2009-10-13 | D204: 15 | E204: Мебельное освещение | F204: 21 | G204: 780 | H204: 16380
... 223 more rows

Sheet Поставки
Q5: Дата продажи
D6: Дата продажи | E6: Наименование | F6: Кол-во | G6: Цена | H6: Сумма | Q6: Код товара
E7: Кухонные комплектующие | Q7: Наименование
Q8: Количество
Q9: Цена
Q10: Сумма
C11: Дата продажи | D11: Код товара | E11: Наименование | F11: Количество | G11: Цена | H11: Сумма | Q11: 5
C12: 2009-10-02 | D12: 6 | E12: =VLOOKUP(D12,Справочник_товары,2) -> Замки | F12: 2 | G12: =VLOOKUP(D12,Справочник_товары,3) -> 60 | H12: =G12*F12 -> 120 | Q12: 1 | R12: Стяжки | S12: 100 | T12: 0.1
C13: 2009-10-20 | D13: 6 | E13: Замки | F13: 10 | G13: 60 | H13: 600 | Q13: 2 | R13: Полкодержатели | S13: 200 | T13: 0.2
C14: 2009-10-15 | D14: 6 | E14: Замки | F14: 8 | G14: 60 | H14: 480 | Q14: 3 | R14: Петли | S14: 250 | T14: 0.1
C15: 2009-10-09 | D15: 6 | E15: Замки | F15: 15 | G15: 60 | H15: 900 | Q15: 4 | R15: Ручки | S15: 500 | T15: 0.1
C16: 2009-10-22 | D16: 6 | E16: Замки | F16: 13 | G16: 60 | H16: 780 | Q16: 5 | R16: Крючки | S16: 400 | T16: 0.1
C17: 2009-10-03 | D17: 6 | E17: Замки | F17: 6 | G17: 60 | H17: 360 | Q17: 6 | R17: Замки | S17: 60 | T17: 0.2
C18: 2009-10-07 | D18: 6 | E18: Замки | F18: 33 | G18: 60 | H18: 1980 | Q18: 7 | R18: Системы для выдвижных ящиков | S18: 310 | T18: 0.15
C19: 2009-10-20 | D19: 6 | E19: Замки | F19: 70 | G19: 60 | H19: 4200 | Q19: 8 | R19: Навесы для мебельных коробов | S19: 300 | T19: 0.15
C20: 2009-10-15 | D20: 6 | E20: Замки | F20: 9 | G20: 60 | H20: 540 | Q20: 9 | R20: Механизмы для раздвижных столов | S20: 300 | T20: 0.15
C21: 2009-10-06 | D21: 6 | E21: Замки | F21: 18 | G21: 60 | H21: 1080 | Q21: 10 | R21: Стеллажные и гардеробные системы | S21: 500 | T21: 0.15
C22: 2009-10-30 | D22: 6 | E22: Замки | F22: 6 | G22: 60 | H22: 360 | Q22: 11 | R22: Кухонные комплектующие | S22: 800 | T22: 0.2
C23: 2009-10-13 | D23: 6 | E23: Замки | F23: 21 | G23: 60 | H23: 1260 | Q23: 12 | R23: Раздвижные системы для шкафов-купе | S23: 220 | T23: 0.2
C24: 2009-10-19 | D24: 6 | E24: Замки | F24: 15 | G24: 60 | H24: 900 | Q24: 13 | R24: Наполнение для шкафов | S24: 150 | T24: 0.2
C25: 2009-10-10 | D25: 1 | E25: Стяжки | F25: 15 | G25: 100 | H25: 1500 | Q25: 14 | R25: Раздвижные системы для межкомнатных дверей | S25: 3000 | T25: 0.1
C26: 2009-10-28 | D26: 1 | E26: Стяжки | F26: 12 | G26: 100 | H26: 1200 | Q26: 15 | R26: Мебельное освещение | S26: 780 | T26: 0.199047619
C27: 2009-10-10 | D27: 1 | E27: Стяжки | F27: 20 | G27: 100 | H27: 2000 | Q27: 16 | R27: Кромочные материалы | S27: 110 | T27: 0.2047619048
C28: 2009-10-03 | D28: 1 | E28: Стяжки | F28: 20 | G28: 100 | H28: 2000
C29: 2009-10-14 | D29: 1 | E29: Стяжки | F29: 21 | G29: 100 | H29: 2100 | Q29: 17 | R29: Прихожие | S29: 8000 | T29: 0.2
C30: 2009-10-17 | D30: 1 | E30: Стяжки | F30: 1 | G30: 100 | H30: 100 | Q30: 18 | R30: Стенки мебельные | S30: 12000 | T30: 0.2
C31: 2009-10-14 | D31: 16 | E31: Кромочные материалы | F31: 6 | G31: 110 | H31: 660 | Q31: 19 | R31: Детская мебель | S31: 9500 | T31: 0.2
C32: 2009-10-18 | D32: 16 | E32: Кромочные материалы | F32: 19 | G32: 110 | H32: 2090 | Q32: 20 | R32: Мебель для спальни | S32: 5000 | T32: 0.2
C33: 2009-10-04 | D33: 16 | E33: Кромочные материалы | F33: 11 | G33: 110 | H33: 1210 | Q33: 21 | R33: Кровати в спальню | S33: 13500 | T33: 0.2
C34: 2009-10-12 | D34: 16 | E34: Кромочные материалы | F34: 14 | G34: 110 | H34: 1540 | Q34: 22 | R34: Ванные комнаты | S34: 6000 | T34: 0.2
C35: 2009-10-08 | D35: 16 | E35: Кромочные материалы | F35: 35 | G35: 110 | H35: 3850 | Q35: 23 | R35: Гардеробные комнаты | S35: 3000 | T35: 0.2
C36: 2009-10-19 | D36: 16 | E36: Кромочные материалы | F36: 3 | G36: 110 | H36: 330 | Q36: 24 | R36: Шкафы распашные | S36: 4200 | T36: 0.2
C37: 2009-10-04 | D37: 16 | E37: Кромочные материалы | F37: 3 | G37: 110 | H37: 330 | Q37: 25 | R37: Мебель для библиотеки | S37: 5100 | T37: 0.2
C38: 2009-10-27 | D38: 16 | E38: Кромочные материалы | F38: 14 | G38: 110 | H38: 1540 | Q38: 26 | R38: Коммерческая мебель | S38: 14000 | T38: 0.2
C39: 2009-10-06 | D39: 16 | E39: Кромочные материалы | F39: 3 | G39: 110 | H39: 330
C40: 2009-10-29 | D40: 16 | E40: Кромочные материалы | F40: 18 | G40: 110 | H40: 1980
C41: 2009-10-06 | D41: 16 | E41: Кромочные материалы | F41: 16 | G41: 110 | H41: 1760
C42: 2009-10-25 | D42: 16 | E42: Кромочные материалы | F42: 20 | G42: 110 | H42: 2200
C43: 2009-10-30 | D43: 16 | E43: Кромочные материалы | F43: 12 | G43: 110 | H43: 1320
C44: 2009-10-18 | D44: 13 | E44: Наполнение для шкафов | F44: 17 | G44: 150 | H44: 2550
C45: 2009-10-16 | D45: 13 | E45: Наполнение для шкафов | F45: 18 | G45: 150 | H45: 2700
C46: 2009-10-16 | D46: 13 | E46: Наполнение для шкафов | F46: 6 | G46: 150 | H46: 900
C47: 2009-10-16 | D47: 13 | E47: Наполнение для шкафов | F47: 3 | G47: 150 | H47: 450
C48: 2009-10-24 | D48: 13 | E48: Наполнение для шкафов | F48: 13 | G48: 150 | H48: 1950
C49: 2009-10-13 | D49: 13 | E49: Наполнение для шкафов | F49: 9 | G49: 150 | H49: 1350
C50: 2009-10-14 | D50: 13 | E50: Наполнение для шкафов | F50: 19 | G50: 150 | H50: 2850
C51: 2009-10-20 | D51: 13 | E51: Наполнение для шкафов | F51: 30 | G51: 150 | H51: 4500
C52: 2009-10-23 | D52: 13 | E52: Наполнение для шкафов | F52: 10 | G52: 150 | H52: 1500
C53: 2009-10-18 | D53: 13 | E53: Наполнение для шкафов | F53: 14 | G53: 150 | H53: 2100
C54: 2009-10-16 | D54: 13 | E54: Наполнение для шкафов | F54: 21 | G54: 150 | H54: 3150
C55: 2009-10-15 | D55: 2 | E55: Полкодержатели | F55: 4 | G55: 200 | H55: 800
C56: 2009-10-24 | D56: 2 | E56: Полкодержатели | F56: 13 | G56: 200 | H56: 2600
C57: 2009-10-12 | D57: 2 | E57: Полкодержатели | F57: 13 | G57: 200 | H57: 2600
C58: 2009-10-25 | D58: 2 | E58: Полкодержатели | F58: 40 | G58: 200 | H58: 8000
C59: 2009-10-26 | D59: 2 | E59: Полкодержатели | F59: 12 | G59: 200 | H59: 2400
C60: 2009-10-06 | D60: 2 | E60: Полкодержатели | F60: 20 | G60: 200 | H60: 4000
C61: 2009-10-11 | D61: 2 | E61: Полкодержатели | F61: 23 | G61: 200 | H61: 4600
C62: 2009-10-23 | D62: 2 | E62: Полкодержатели | F62: 17 | G62: 200 | H62: 3400
C63: 2009-10-15 | D63: 2 | E63: Полкодержатели | F63: 13 | G63: 200 | H63: 2600
C64: 2009-10-24 | D64: 2 | E64: Полкодержатели | F64: 4 | G64: 200 | H64: 800
C65: 2009-10-28 | D65: 12 | E65: Раздвижные системы для шкафов-купе | F65: 1 | G65: 220 | H65: 220
C66: 2009-10-23 | D66: 12 | E66: Раздвижные системы для шкафов-купе | F66: 18 | G66: 220 | H66: 3960
C67: 2009-10-16 | D67: 12 | E67: Раздвижные системы для шкафов-купе | F67: 13 | G67: 220 | H67: 2860
C68: 2009-10-18 | D68: 12 | E68: Раздвижные системы для шкафов-купе | F68: 11 | G68: 220 | H68: 2420
C69: 2009-10-08 | D69: 12 | E69: Раздвижные системы для шкафов-купе | F69: 9 | G69: 220 | H69: 1980
C70: 2009-10-19 | D70: 12 | E70: Раздвижные системы для шкафов-купе | F70: 5 | G70: 220 | H70: 1100
C71: 2009-10-13 | D71: 12 | E71: Раздвижные системы для шкафов-купе | F71: 13 | G71: 220 | H71: 2860
C72: 2009-10-04 | D72: 12 | E72: Раздвижные системы для шкафов-купе | F72: 4 | G72: 220 | H72: 880
C73: 2009-10-17 | D73: 12 | E73: Раздвижные системы для шкафов-купе | F73: 18 | G73: 220 | H73: 3960
C74: 2009-10-14 | D74: 12 | E74: Раздвижные системы для шкафов-купе | F74: 21 | G74: 220 | H74: 4620
C75: 2009-10-04 | D75: 12 | E75: Раздвижные системы для шкафов-купе | F75: 12 | G75: 220 | H75: 2640
C76: 2009-10-03 | D76: 12 | E76: =VLOOKUP(D76,Справочник_товары,2) -> Раздвижные системы для шкафов-купе | F76: 8 | G76: =VLOOKUP(D76,Справочник_товары,3) -> 220 | H76: =G76*F76 -> 1760
C77: 2009-10-08 | D77: 12 | E77: Раздвижные системы для шкафов-купе | F77: 2 | G77: 220 | H77: 440
C78: 2009-10-06 | D78: 3 | E78: Петли | F78: 2 | G78: 250 | H78: 500
C79: 2009-10-01 | D79: 3 | E79: Петли | F79: 7 | G79: 250 | H79: 1750
C80: 2009-10-29 | D80: 3 | E80: Петли | F80: 23 | G80: 250 | H80: 5750
C81: 2009-10-04 | D81: 3 | E81: Петли | F81: 17 | G81: 250 | H81: 4250
C82: 2009-10-11 | D82: 3 | E82: Петли | F82: 17 | G82: 250 | H82: 4250
C83: 2009-10-25 | D83: 3 | E83: Петли | F83: 8 | G83: 250 | H83: 2000
C84: 2009-10-27 | D84: 3 | E84: Петли | F84: 9 | G84: 250 | H84: 2250
C85: 2009-10-21 | D85: 3 | E85: Петли | F85: 12 | G85: 250 | H85: 3000
C86: 2009-10-30 | D86: 3 | E86: Петли | F86: 8 | G86: 250 | H86: 2000
C87: 2009-10-22 | D87: 3 | E87: Петли | F87: 14 | G87: 250 | H87: 3500
C88: 2009-10-26 | D88: 3 | E88: Петли | F88: 15 | G88: 250 | H88: 3750
C89: 2009-10-27 | D89: 3 | E89: Петли | F89: 13 | G89: 250 | H89: 3250
C90: 2009-10-13 | D90: 3 | E90: Петли | F90: 14 | G90: 250 | H90: 3500
C91: 2009-10-04 | D91: 8 | E91: Навесы для мебельных коробов | F91: 2 | G91: 300 | H91: 600
C92: 2009-10-16 | D92: 8 | E92: Навесы для мебельных коробов | F92: 4 | G92: 300 | H92: 1200
C93: 2009-10-26 | D93: 8 | E93: Навесы для мебельных коробов | F93: 9 | G93: 300 | H93: 2700
C94: 2009-10-07 | D94: 8 | E94: Навесы для мебельных коробов | F94: 23 | G94: 300 | H94: 6900
C95: 2009-10-20 | D95: 8 | E95: Навесы для мебельных коробов | F95: 7 | G95: 300 | H95: 2100
C96: 2009-10-14 | D96: 8 | E96: Навесы для мебельных коробов | F96: 14 | G96: 300 | H96: 4200
C97: 2009-10-15 | D97: 8 | E97: Навесы для мебельных коробов | F97: 19 | G97: 300 | H97: 5700
C98: 2009-10-26 | D98: 8 | E98: Навесы для мебельных коробов | F98: 6 | G98: 300 | H98: 1800
C99: 2009-10-27 | D99: 8 | E99: Навесы для мебельных коробов | F99: 16 | G99: 300 | H99: 4800
C100: 2009-10-18 | D100: 8 | E100: Навесы для мебельных коробов | F100: 11 | G100: 300 | H100: 3300
C101: 2009-10-23 | D101: 8 | E101: Навесы для мебельных коробов | F101: 16 | G101: 300 | H101: 4800
C102: 2009-10-18 | D102: 8 | E102: Навесы для мебельных коробов | F102: 10 | G102: 300 | H102: 3000
C103: 2009-10-11 | D103: 8 | E103: Навесы для мебельных коробов | F103: 9 | G103: 300 | H103: 2700
C104: 2009-10-05 | D104: 9 | E104: Механизмы для раздвижных столов | F104: 16 | G104: 300 | H104: 4800
C105: 2009-10-08 | D105: 9 | E105: Механизмы для раздвижных столов | F105: 6 | G105: 300 | H105: 1800
C106: 2009-10-20 | D106: 9 | E106: Механизмы для раздвижных столов | F106: 23 | G106: 300 | H106: 6900
C107: 2009-10-28 | D107: 9 | E107: Механизмы для раздвижных столов | F107: 50 | G107: 300 | H107: 15000
C108: 2009-10-01 | D108: 9 | E108: Механизмы для раздвижных столов | F108: 13 | G108: 300 | H108: 3900
C109: 2009-10-07 | D109: 9 | E109: Механизмы для раздвижных столов | F109: 27 | G109: 300 | H109: 8100
C110: 2009-10-13 | D110: 9 | E110: Механизмы для раздвижных столов | F110: 5 | G110: 300 | H110: 1500
C111: 2009-10-07 | D111: 9 | E111: Механизмы для раздвижных столов | F111: 8 | G111: 300 | H111: 2400
C112: 2009-10-19 | D112: 9 | E112: Механизмы для раздвижных столов | F112: 17 | G112: 300 | H112: 5100
C113: 2009-10-08 | D113: 9 | E113: Механизмы для раздвижных столов | F113: 16 | G113: 300 | H113: 4800
C114: 2009-10-19 | D114: 9 | E114: Механизмы для раздвижных столов | F114: 18 | G114: 300 | H114: 5400
C115: 2009-10-30 | D115: 9 | E115: Механизмы для раздвижных столов | F115: 9 | G115: 300 | H115: 2700
C116: 2009-10-07 | D116: 9 | E116: Механизмы для раздвижных столов | F116: 10 | G116: 300 | H116: 3000
C117: 2009-10-20 | D117: 9 | E117: Механизмы для раздвижных столов | F117: 7 | G117: 300 | H117: 2100
C118: 2009-10-22 | D118: 9 | E118: Механизмы для раздвижных столов | F118: 20 | G118: 300 | H118: 6000
C119: 2009-10-29 | D119: 9 | E119: Механизмы для раздвижных столов | F119: 18 | G119: 300 | H119: 5400
C120: 2009-10-21 | D120: 7 | E120: Системы для выдвижных ящиков | F120: 8 | G120: 310 | H120: 2480
C121: 2009-10-21 | D121: 7 | E121: Системы для выдвижных ящиков | F121: 2 | G121: 310 | H121: 620
C122: 2009-10-18 | D122: 7 | E122: Системы для выдвижных ящиков | F122: 35 | G122: 310 | H122: 10850
C123: 2009-10-01 | D123: 7 | E123: Системы для выдвижных ящиков | F123: 20 | G123: 310 | H123: 6200
C124: 2009-10-11 | D124: 7 | E124: Системы для выдвижных ящиков | F124: 22 | G124: 310 | H124: 6820
C125: 2009-10-21 | D125: 7 | E125: Системы для выдвижных ящиков | F125: 20 | G125: 310 | H125: 6200
C126: 2009-10-25 | D126: 7 | E126: Системы для выдвижных ящиков | F126: 9 | G126: 310 | H126: 2790
C127: 2009-10-26 | D127: 7 | E127: Системы для выдвижных ящиков | F127: 8 | G127: 310 | H127: 2480
C128: 2009-10-14 | D128: 7 | E128: Системы для выдвижных ящиков | F128: 7 | G128: 310 | H128: 2170
C129: 2009-10-21 | D129: 7 | E129: Системы для выдвижных ящиков | F129: 21 | G129: 310 | H129: 6510
C130: 2009-10-19 | D130: 7 | E130: Системы для выдвижных ящиков | F130: 23 | G130: 310 | H130: 7130
C131: 2009-10-24 | D131: 5 | E131: Крючки | F131: 18 | G131: 400 | H131: 7200
C132: 2009-10-30 | D132: 5 | E132: Крючки | F132: 22 | G132: 400 | H132: 8800
C133: 2009-10-21 | D133: 5 | E133: Крючки | F133: 14 | G133: 400 | H133: 5600
C134: 2009-10-12 | D134: 5 | E134: Крючки | F134: 25 | G134: 400 | H134: 10000
C135: 2009-10-03 | D135: 5 | E135: Крючки | F135: 15 | G135: 400 | H135: 6000
C136: 2009-10-17 | D136: 5 | E136: Крючки | F136: 1 | G136: 400 | H136: 400
C137: 2009-10-15 | D137: 5 | E137: Крючки | F137: 23 | G137: 400 | H137: 9200
C138: 2009-10-01 | D138: 5 | E138: Крючки | F138: 200 | G138: 400 | H138: 80000
C139: 2009-10-05 | D139: 4 | E139: Ручки | F139: 19 | G139: 500 | H139: 9500
C140: 2009-10-18 | D140: 4 | E140: =VLOOKUP(D140,Справочник_товары,2) -> Ручки | F140: 4 | G140: =VLOOKUP(D140,Справочник_товары,3) -> 500 | H140: =G140*F140 -> 2000
C141: 2009-10-23 | D141: 4 | E141: Ручки | F141: 8 | G141: 500 | H141: 4000
C142: 2009-10-15 | D142: 4 | E142: Ручки | F142: 16 | G142: 500 | H142: 8000
C143: 2009-10-17 | D143: 4 | E143: Ручки | F143: 13 | G143: 500 | H143: 6500
C144: 2009-10-22 | D144: 4 | E144: Ручки | F144: 11 | G144: 500 | H144: 5500
C145: 2009-10-26 | D145: 4 | E145: Ручки | F145: 15 | G145: 500 | H145: 7500
C146: 2009-10-17 | D146: 4 | E146: Ручки | F146: 14 | G146: 500 | H146: 7000
C147: 2009-10-16 | D147: 4 | E147: Ручки | F147: 3 | G147: 500 | H147: 1500
C148: 2009-10-03 | D148: 4 | E148: Ручки | F148: 7 | G148: 500 | H148: 3500
C149: 2009-10-14 | D149: 4 | E149: Ручки | F149: 17 | G149: 500 | H149: 8500
C150: 2009-10-16 | D150: 4 | E150: Ручки | F150: 8 | G150: 500 | H150: 4000
C151: 2009-10-16 | D151: 4 | E151: Ручки | F151: 3 | G151: 500 | H151: 1500
C152: 2009-10-11 | D152: 4 | E152: Ручки | F152: 13 | G152: 500 | H152: 6500
C153: 2009-10-08 | D153: 4 | E153: Ручки | F153: 15 | G153: 500 | H153: 7500
C154: 2009-10-22 | D154: 10 | E154: Стеллажные и гардеробные системы | F154: 15 | G154: 500 | H154: 7500
C155: 2009-10-17 | D155: 10 | E155: Стеллажные и гардеробные системы | F155: 22 | G155: 500 | H155: 11000
C156: 2009-10-30 | D156: 10 | E156: Стеллажные и гардеробные системы | F156: 12 | G156: 500 | H156: 6000
C157: 2009-10-18 | D157: 10 | E157: Стеллажные и гардеробные системы | F157: 5 | G157: 500 | H157: 2500
C158: 2009-10-12 | D158: 10 | E158: Стеллажные и гардеробные системы | F158: 14 | G158: 500 | H158: 7000
C159: 2009-10-21 | D159: 10 | E159: Стеллажные и гардеробные системы | F159: 3 | G159: 500 | H159: 1500
C160: 2009-10-12 | D160: 10 | E160: Стеллажные и гардеробные системы | F160: 16 | G160: 500 | H160: 8000
C161: 2009-10-04 | D161: 10 | E161: Стеллажные и гардеробные системы | F161: 4 | G161: 500 | H161: 2000
C162: 2009-10-23 | D162: 10 | E162: Стеллажные и гардеробные системы | F162: 4 | G162: 500 | H162: 2000
C163: 2009-10-22 | D163: 10 | E163: Стеллажные и гардеробные системы | F163: 23 | G163: 500 | H163: 11500
C164: 2009-10-29 | D164: 10 | E164: Стеллажные и гардеробные системы | F164: 17 | G164: 500 | H164: 8500
C165: 2009-10-22 | D165: 10 | E165: Стеллажные и гардеробные системы | F165: 3 | G165: 500 | H165: 1500
C166: 2009-10-09 | D166: 15 | E166: Мебельное освещение | F166: 4 | G166: 780 | H166: 3120
C167: 2009-10-26 | D167: 15 | E167: Мебельное освещение | F167: 4 | G167: 780 | H167: 3120
C168: 2009-10-14 | D168: 15 | E168: Мебельное освещение | F168: 6 | G168: 780 | H168: 4680
C169: 2009-10-02 | D169: 15 | E169: Мебельное освещение | F169: 7 | G169: 780 | H169: 5460
C170: 2009-10-01 | D170: 15 | E170: Мебельное освещение | F170: 7 | G170: 780 | H170: 5460
C171: 2009-10-17 | D171: 15 | E171: Мебельное освещение | F171: 9 | G171: 780 | H171: 7020
C172: 2009-10-26 | D172: 15 | E172: Мебельное освещение | F172: 10 | G172: 780 | H172: 7800
C173: 2009-10-20 | D173: 15 | E173: Мебельное освещение | F173: 10 | G173: 780 | H173: 7800
C174: 2009-10-05 | D174: 15 | E174: Мебельное освещение | F174: 12 | G174: 780 | H174: 9360
C175: 2009-10-28 | D175: 15 | E175: Мебельное освещение | F175: 15 | G175: 780 | H175: 11700
C176: 2009-10-15 | D176: 15 | E176: Мебельное освещение | F176: 13 | G176: 780 | H176: 10140
C177: 2009-10-12 | D177: 15 | E177: Мебельное освещение | F177: 13 | G177: 780 | H177: 10140
C178: 2009-10-30 | D178: 15 | E178: Мебельное освещение | F178: 14 | G178: 780 | H178: 10920
C179: 2009-10-17 | D179: 15 | E179: Мебельное освещение | F179: 23 | G179: 780 | H179: 17940
C180: 2009-10-11 | D180: 15 | E180: Мебельное освещение | F180: 15 | G180: 780 | H180: 11700
C181: 2009-10-10 | D181: 15 | E181: Мебельное освещение | F181: 16 | G181: 780 | H181: 12480
C182: 2009-10-16 | D182: 15 | E182: Мебельное освещение | F182: 20 | G182: 780 | H182: 15600
C183: 2009-10-09 | D183: 15 | E183: Мебельное освещение | F183: 20 | G183: 780 | H183: 15600
C184: 2009-10-17 | D184: 15 | E184: Мебельное освещение | F184: 20 | G184: 780 | H184: 15600
C185: 2009-10-28 | D185: 15 | E185: Мебельное освещение | F185: 21 | G185: 780 | H185: 16380
C186: 2009-10-19 | D186: 15 | E186: Мебельное освещение | F186: 21 | G186: 780 | H186: 16380
C187: 2009-10-13 | D187: 15 | E187: Мебельное освещение | F187: 21 | G187: 780 | H187: 16380
C188: 2009-10-26 | D188: 15 | E188: Мебельное освещение | F188: 22 | G188: 780 | H188: 17160
C189: 2009-10-27 | D189: 15 | E189: Мебельное освещение | F189: 22 | G189: 780 | H189: 17160
C190: 2009-10-13 | D190: 15 | E190: Мебельное освещение | F190: 22 | G190: 780 | H190: 17160
C191: 2009-10-21 | D191: 11 | E191: Кухонные комплектующие | F191: 23 | G191: 800 | H191: 18400
C192: 2009-10-24 | D192: 11 | E192: Кухонные комплектующие | F192: 5 | G192: 800 | H192: 4000
C193: 2009-10-06 | D193: 11 | E193: Кухонные комплектующие | F193: 20 | G193: 800 | H193: 16000
C194: 2009-10-27 | D194: 11 | E194: Кухонные комплектующие | F194: 6 | G194: 800 | H194: 4800
C195: 2009-10-06 | D195: 11 | E195: Кухонные комплектующие | F195: 7 | G195: 800 | H195: 5600
C196: 2009-10-07 | D196: 11 | E196: Кухонные комплектующие | F196: 16 | G196: 800 | H196: 12800
C197: 2009-10-25 | D197: 11 | E197: Кухонные комплектующие | F197: 16 | G197: 800 | H197: 12800
C198: 2009-10-18 | D198: 11 | E198: Кухонные комплектующие | F198: 11 | G198: 800 | H198: 8800
C199: 2009-10-22 | D199: 11 | E199: Кухонные комплектующие | F199: 22 | G199: 800 | H199: 17600
C200: 2009-10-16 | D200: 11 | E200: Кухонные комплектующие | F200: 15 | G200: 800 | H200: 12000
C201: 2009-10-04 | D201: 11 | E201: Кухонные комплектующие | F201: 23 | G201: 800 | H201: 18400
C202: 2009-10-08 | D202: 11 | E202: Кухонные комплектующие | F202: 12 | G202: 800 | H202: 9600
C203: 2009-10-09 | D203: 11 | E203: Кухонные комплектующие | F203: 1 | G203: 800 | H203: 800
C204: 2009-10-30 | D204: 14 | E204: =VLOOKUP(D204,Справочник_товары,2) -> Раздвижные системы для межкомнатных дверей | F204: 25 | G204: =VLOOKUP(D204,Справочник_товары,3) -> 3000 | H204: =G204*F204 -> 75000
... 223 more rows

Sheet Доставка
A1: № | B1: Имя клиента | C1: Код товара | D1: Наименование | E1: Дизайнер | F1: Конструктор | G1: Адрес | H1: Стоимость без учета этажа | I1: Этаж(1этаж=200руб.) | J1: Стоимость | K1: Дата заказа | L1: Дата привоза | M1: Отсалось дней
A2: 1 | B2: Вася1 | C2: 22 | D2: =VLOOKUP(Таблица1[[#This Row],[Код товара]],Сборка,2) -> Ванные комнаты | E2: Баранова | F2: Петров | G2: ул.1д.1 | H2: =VLOOKUP(Таблица1[[#This Row],[Код товара]],Сборка,3) -> 6000 | I2: 7 | J2: =Таблица1[[#This Row],[Стоимость без учета этажа]]+(200*Таблица1[[#This Row],[Этаж(1этаж=200руб.)]]) -> 7400 | K2: 2009-10-12 | L2: 2009-10-28 | M2: =Таблица1[[#This Row],[Дата привоза]]-Таблица1[[#This Row],[Дата заказа]] -> 16
A3: 2 | B3: Вася2 | C3: 24 | D3: =VLOOKUP(Таблица1[[#This Row],[Код товара]],Сборка,2) -> Шкафы распашные | E3: Гордеева | F3: Меньшов | G3: ул.2д.2 | H3: =VLOOKUP(Таблица1[[#This Row],[Код товара]],Сборка,3) -> 4200 | I3: 4 | J3: =Таблица1[[#This Row],[Стоимость без учета этажа]]+(200*Таблица1[[#This Row],[Этаж(1этаж=200руб.)]]) -> 5000 | K3: 2009-10-04 | L3: 2009-10-16 | M3: =Таблица1[[#This Row],[Дата привоза]]-Таблица1[[#This Row],[Дата заказа]] -> 12
A4: 3 | B4: Вася3 | C4: 24 | D4: =VLOOKUP(Таблица1[[#This Row],[Код товара]],Сборка,2) -> Шкафы распашные | E4: Кузнецов | F4: Меньшов | G4: ул.1д.3 | H4: =VLOOKUP(Таблица1[[#This Row],[Код товара]],Сборка,3) -> 4200 | I4: 9 | J4: =Таблица1[[#This Row],[Стоимость без учета этажа]]+(200*Таблица1[[#This Row],[Этаж(1этаж=200руб.)]]) -> 6000 | K4: 2009-10-06 | L4: 2009-10-13 | M4: =Таблица1[[#This Row],[Дата привоза]]-Таблица1[[#This Row],[Дата заказа]] -> 7
A5: 4 | B5: Вася3 | C5: 23 | D5: =VLOOKUP(Таблица1[[#This Row],[Код товара]],Сборка,2) -> Гардеробные комнаты | E5: Гордеева | F5: Меньшов | G5: ул.4д.5 | H5: =VLOOKUP(Таблица1[[#This Row],[Код товара]],Сборка,3) -> 3000 | I5: 8 | J5: =Таблица1[[#This Row],[Стоимость без учета этажа]]+(200*Таблица1[[#This Row],[Этаж(1этаж=200руб.)]]) -> 4600 | K5: 2009-10-15 | L5: 2009-11-01 | M5: =Таблица1[[#This Row],[Дата привоза]]-Таблица1[[#This Row],[Дата заказа]] -> 17
A6: 6 | B6: Вася4 | C6: 17 | D6: =VLOOKUP(Таблица1[[#This Row],[Код товара]],Сборка,2) -> Прихожие | E6: Баранова | F6: Петров | G6: ул.8д.8 | H6: =VLOOKUP(Таблица1[[#This Row],[Код товара]],Сборка,3) -> 8000 | I6: 5 | J6: =Таблица1[[#This Row],[Стоимость без учета этажа]]+(200*Таблица1[[#This Row],[Этаж(1этаж=200руб.)]]) -> 9000 | K6: 2009-10-18 | L6: 2009-11-02 | M6: =Таблица1[[#This Row],[Дата привоза]]-Таблица1[[#This Row],[Дата заказа]] -> 15
A7: 6.8 | B7: Вася5 | C7: 24 | D7: =VLOOKUP(Таблица1[[#This Row],[Код товара]],Сборка,2) -> Шкафы распашные | E7: Кузнецов | F7: Петров | G7: ул.9д.2 | H7: =VLOOKUP(Таблица1[[#This Row],[Код товара]],Сборка,3) -> 4200 | I7: 2 | J7: =Таблица1[[#This Row],[Стоимость без учета этажа]]+(200*Таблица1[[#This Row],[Этаж(1этаж=200руб.)]]) -> 4600 | K7: 2009-10-07 | L7: 2009-10-18 | M7: =Таблица1[[#This Row],[Дата привоза]]-Таблица1[[#This Row],[Дата заказа]] -> 11
A8: 8 | B8: Вася7 | C8: 25 | D8: =VLOOKUP(Таблица1[[#This Row],[Код товара]],Сборка,2) -> Мебель для библиотеки | E8: Кузнецов | F8: Меньшов | G8: ул.2д.3 | H8: =VLOOKUP(Таблица1[[#This Row],[Код товара]],Сборка,3) -> 5100 | I8: 7 | J8: =Таблица1[[#This Row],[Стоимость без учета этажа]]+(200*Таблица1[[#This Row],[Этаж(1этаж=200руб.)]]) -> 6500 | K8: 2009-10-18 | L8: 2009-10-31 | M8: =Таблица1[[#This Row],[Дата привоза]]-Таблица1[[#This Row],[Дата заказа]] -> 13
A9: 9.2 | B9: Вася1 | C9: 21 | D9: =VLOOKUP(Таблица1[[#This Row],[Код товара]],Сборка,2) -> Кровати в спальню | E9: Баранова | F9: Петров | G9: ул.1д.4 | H9: =VLOOKUP(Таблица1[[#This Row],[Код товара]],Сборка,3) -> 13500 | I9: 8 | J9: =Таблица1[[#This Row],[Стоимость без учета этажа]]+(200*Таблица1[[#This Row],[Этаж(1этаж=200руб.)]]) -> 15100 | K9: 2009-10-01 | L9: 2009-10-16 | M9: =Таблица1[[#This Row],[Дата привоза]]-Таблица1[[#This Row],[Дата заказа]] -> 15
A10: 10.4 | B10: Вася3 | C10: 25 | D10: =VLOOKUP(Таблица1[[#This Row],[Код товара]],Сборка,2) -> Мебель для библиотеки | E10: Гордеева | F10: Меньшов | G10: ул.4д.6 | H10: =VLOOKUP(Таблица1[[#This Row],[Код товара]],Сборка,3) -> 5100 | I10: 5 | J10: =Таблица1[[#This Row],[Стоимость без учета этажа]]+(200*Таблица1[[#This Row],[Этаж(1этаж=200руб.)]]) -> 6100 | K10: 2009-10-18 | L10: 2009-11-01 | M10: =Таблица1[[#This Row],[Дата привоза]]-Таблица1[[#This Row],[Дата заказа]] -> 14
A11: 11.6 | B11: Вася8 | C11: 22 | D11: =VLOOKUP(Таблица1[[#This Row],[Код товара]],Сборка,2) -> Ванные комнаты | E11: Кузнецов | F11: Меньшов | G11: ул.8д.9 | H11: =VLOOKUP(Таблица1[[#This Row],[Код товара]],Сборка,3) -> 6000 | I11: 9 | J11: =Таблица1[[#This Row],[Стоимость без учета этажа]]+(200*Таблица1[[#This Row],[Этаж(1этаж=200руб.)]]) -> 7800 | K11: 2009-10-03 | L11: 2009-10-11 | M11: =Таблица1[[#This Row],[Дата привоза]]-Таблица1[[#This Row],[Дата заказа]] -> 8
A12: 12.8 | B12: Вася1 | C12: 21 | D12: =VLOOKUP(Таблица1[[#This Row],[Код товара]],Сборка,2) -> Кровати в спальню | E12: Гордеева | F12: Меньшов | G12: ул.1д.3 | H12: =VLOOKUP(Таблица1[[#This Row],[Код товара]],Сборка,3) -> 13500 | I12: 2 | J12: =Таблица1[[#This Row],[Стоимость без учета этажа]]+(200*Таблица1[[#This Row],[Этаж(1этаж=200руб.)]]) -> 13900 | K12: 2009-10-19 | L12: 2009-11-03 | M12: =Таблица1[[#This Row],[Дата привоза]]-Таблица1[[#This Row],[Дата заказа]] -> 15
A13: 14 | B13: Вася2 | C13: 23 | D13: =VLOOKUP(Таблица1[[#This Row],[Код товара]],Сборка,2) -> Гардеробные комнаты | E13: Баранова | F13: Петров | G13: ул.1д.2 | H13: =VLOOKUP(Таблица1[[#This Row],[Код товара]],Сборка,3) -> 3000 | I13: 7 | J13: =Таблица1[[#This Row],[Стоимость без учета этажа]]+(200*Таблица1[[#This Row],[Этаж(1этаж=200руб.)]]) -> 4400 | K13: 2009-10-03 | L13: 2009-10-17 | M13: =Таблица1[[#This Row],[Дата привоза]]-Таблица1[[#This Row],[Дата заказа]] -> 14
A14: 15.2 | B14: Вася3 | C14: 17 | D14: =VLOOKUP(Таблица1[[#This Row],[Код товара]],Сборка,2) -> Прихожие | E14: Кузнецов | F14: Петров | G14: ул.2д.3 | H14: =VLOOKUP(Таблица1[[#This Row],[Код товара]],Сборка,3) -> 8000 | I14: 3 | J14: =Таблица1[[#This Row],[Стоимость без учета этажа]]+(200*Таблица1[[#This Row],[Этаж(1этаж=200руб.)]]) -> 8600 | K14: 2009-10-06 | L14: 2009-10-24 | M14: =Таблица1[[#This Row],[Дата привоза]]-Таблица1[[#This Row],[Дата заказа]] -> 18
A15: 16.4 | B15: Вася3 | C15: 18 | D15: =VLOOKUP(Таблица1[[#This Row],[Код товара]],Сборка,2) -> Стенки мебельные | E15: Кузнецов | F15: Меньшов | G15: ул.1д.4 | H15: =VLOOKUP(Таблица1[[#This Row],[Код товара]],Сборка,3) -> 12000 | I15: 1 | J15: =Таблица1[[#This Row],[Стоимость без учета этажа]]+(200*Таблица1[[#This Row],[Этаж(1этаж=200руб.)]]) -> 12200 | K15: 2009-10-18 | L15: 2009-11-03 | M15: =Таблица1[[#This Row],[Дата привоза]]-Таблица1[[#This Row],[Дата заказа]] -> 16
A16: 17.6 | B16: Вася4 | C16: 22 | D16: =VLOOKUP(Таблица1[[#This Row],[Код товара]],Сборка,2) -> Ванные комнаты | E16: Баранова | F16: Петров | G16: ул.4д.6 | H16: =VLOOKUP(Таблица1[[#This Row],[Код товара]],Сборка,3) -> 6000 | I16: 9 | J16: =Таблица1[[#This Row],[Стоимость без учета этажа]]+(200*Таблица1[[#This Row],[Этаж(1этаж=200руб.)]]) -> 7800 | K16: 2009-10-12 | L16: 2009-10-18 | M16: =Таблица1[[#This Row],[Дата привоза]]-Таблица1[[#This Row],[Дата заказа]] -> 6
A17: 18.8 | B17: Вася5 | C17: 18 | D17: =VLOOKUP(Таблица1[[#This Row],[Код товара]],Сборка,2) -> Стенки мебельные | E17: Гордеева | F17: Меньшов | G17: ул.8д.9 | H17: =VLOOKUP(Таблица1[[#This Row],[Код товара]],Сборка,3) -> 12000 | I17: 7 | J17: =Таблица1[[#This Row],[Стоимость без учета этажа]]+(200*Таблица1[[#This Row],[Этаж(1этаж=200руб.)]]) -> 13400 | K17: 2009-10-12 | L17: 2009-10-22 | M17: =Таблица1[[#This Row],[Дата привоза]]-Таблица1[[#This Row],[Дата заказа]] -> 10
A18: 20 | B18: Вася7 | C18: 17 | D18: =VLOOKUP(Таблица1[[#This Row],[Код товара]],Сборка,2) -> Прихожие | E18: Кузнецов | F18: Меньшов | G18: ул.9д.3 | H18: =VLOOKUP(Таблица1[[#This Row],[Код товара]],Сборка,3) -> 8000 | I18: 9 | J18: =Таблица1[[#This Row],[Стоимость без учета этажа]]+(200*Таблица1[[#This Row],[Этаж(1этаж=200руб.)]]) -> 9800 | K18: 2009-10-30 | L18: 2009-11-07 | M18: =Таблица1[[#This Row],[Дата привоза]]-Таблица1[[#This Row],[Дата заказа]] -> 8
A19: 21.2 | B19: Вася1 | C19: 25 | D19: =VLOOKUP(Таблица1[[#This Row],[Код товара]],Сборка,2) -> Мебель для библиотеки | E19: Гордеева | F19: Меньшов | G19: ул.2д.4 | H19: =VLOOKUP(Таблица1[[#This Row],[Код товара]],Сборка,3) -> 5100 | I19: 7 | J19: =Таблица1[[#This Row],[Стоимость без учета этажа]]+(200*Таблица1[[#This Row],[Этаж(1этаж=200руб.)]]) -> 6500 | K19: 2009-10-11 | L19: 2009-10-19 | M19: =Таблица1[[#This Row],[Дата привоза]]-Таблица1[[#This Row],[Дата заказа]] -> 8
A20: 22.4 | B20: Вася3 | C20: 21 | D20: =VLOOKUP(Таблица1[[#This Row],[Код товара]],Сборка,2) -> Кровати в спальню | E20: Баранова | F20: Петров | G20: ул.1д.5 | H20: =VLOOKUP(Таблица1[[#This Row],[Код товара]],Сборка,3) -> 13500 | I20: 5 | J20: =Таблица1[[#This Row],[Стоимость без учета этажа]]+(200*Таблица1[[#This Row],[Этаж(1этаж=200руб.)]]) -> 14500 | K20: 2009-10-05 | L20: 2009-10-18 | M20: =Таблица1[[#This Row],[Дата привоза]]-Таблица1[[#This Row],[Дата заказа]] -> 13
A21: 23.6 | B21: Вася8 | C21: 26 | D21: =VLOOKUP(Таблица1[[#This Row],[Код товара]],Сборка,2) -> Коммерческая мебель | E21: Кузнецов | F21: Петров | G21: ул.4д.7 | H21: =VLOOKUP(Таблица1[[#This Row],[Код товара]],Сборка,3) -> 14000 | I21: 1 | J21: =Таблица1[[#This Row],[Стоимость без учета этажа]]+(200*Таблица1[[#This Row],[Этаж(1этаж=200руб.)]]) -> 14200 | K21: 2009-10-23 | L21: 2009-10-29 | M21: =Таблица1[[#This Row],[Дата привоза]]-Таблица1[[#This Row],[Дата заказа]] -> 6
A22: 24.8 | B22: Вася1 | C22: 26 | D22: =VLOOKUP(Таблица1[[#This Row],[Код товара]],Сборка,2) -> Коммерческая мебель | E22: Кузнецов | F22: Меньшов | G22: ул.8д.10 | H22: =VLOOKUP(Таблица1[[#This Row],[Код товара]],Сборка,3) -> 14000 | I22: 7 | J22: =Таблица1[[#This Row],[Стоимость без учета этажа]]+(200*Таблица1[[#This Row],[Этаж(1этаж=200руб.)]]) -> 15400 | K22: 2009-10-27 | L22: 2009-11-10 | M22: =Таблица1[[#This Row],[Дата привоза]]-Таблица1[[#This Row],[Дата заказа]] -> 14
A23: 26 | B23: Вася2 | C23: 19 | D23: =VLOOKUP(Таблица1[[#This Row],[Код товара]],Сборка,2) -> Детская мебель | E23: Баранова | F23: Петров | G23: ул.1д.4 | H23: =VLOOKUP(Таблица1[[#This Row],[Код товара]],Сборка,3) -> 9500 | I23: 7 | J23: =Таблица1[[#This Row],[Стоимость без учета этажа]]+(200*Таблица1[[#This Row],[Этаж(1этаж=200руб.)]]) -> 10900 | K23: 2009-10-28 | L23: 2009-11-10 | M23: =Таблица1[[#This Row],[Дата привоза]]-Таблица1[[#This Row],[Дата заказа]] -> 13
A24: 27.2 | B24: Вася3 | C24: 20 | D24: =VLOOKUP(Таблица1[[#This Row],[Код товара]],Сборка,2) -> Мебель для спальни | E24: Гордеева | F24: Меньшов | G24: ул.1д.3 | H24: =VLOOKUP(Таблица1[[#This Row],[Код товара]],Сборка,3) -> 5000 | I24: 7 | J24: =Таблица1[[#This Row],[Стоимость без учета этажа]]+(200*Таблица1[[#This Row],[Этаж(1этаж=200руб.)]]) -> 6400 | K24: 2009-10-18 | L24: 2009-10-24 | M24: =Таблица1[[#This Row],[Дата привоза]]-Таблица1[[#This Row],[Дата заказа]] -> 6 | V24: 17
A25: 28.4 | B25: Вася3 | C25: 19 | D25: =VLOOKUP(Таблица1[[#This Row],[Код товара]],Сборка,2) -> Детская мебель | E25: Кузнецов | F25: Меньшов | G25: ул.2д.4 | H25: =VLOOKUP(Таблица1[[#This Row],[Код товара]],Сборка,3) -> 9500 | I25: 5 | J25: =Таблица1[[#This Row],[Стоимость без учета этажа]]+(200*Таблица1[[#This Row],[Этаж(1этаж=200руб.)]]) -> 10500 | K25: 2009-10-24 | L25: 2009-11-02 | M25: =Таблица1[[#This Row],[Дата привоза]]-Таблица1[[#This Row],[Дата заказа]] -> 9 | V25: 18
A26: 29.6 | B26: Вася4 | C26: 26 | D26: =VLOOKUP(Таблица1[[#This Row],[Код товара]],Сборка,2) -> Коммерческая мебель | E26: Гордеева | F26: Меньшов | G26: ул.1д.5 | H26: =VLOOKUP(Таблица1[[#This Row],[Код товара]],Сборка,3) -> 14000 | I26: 3 | J26: =Таблица1[[#This Row],[Стоимость без учета этажа]]+(200*Таблица1[[#This Row],[Этаж(1этаж=200руб.)]]) -> 14600 | K26: 2009-10-13 | L26: 2009-10-31 | M26: =Таблица1[[#This Row],[Дата привоза]]-Таблица1[[#This Row],[Дата заказа]] -> 18 | V26: 19
A27: 30.8 | B27: Вася5 | C27: 22 | D27: =VLOOKUP(Таблица1[[#This Row],[Код товара]],Сборка,2) -> Ванные комнаты | E27: Баранова | F27: Петров | G27: ул.4д.7 | H27: =VLOOKUP(Таблица1[[#This Row],[Код товара]],Сборка,3) -> 6000 | I27: 7 | J27: =Таблица1[[#This Row],[Стоимость без учета этажа]]+(200*Таблица1[[#This Row],[Этаж(1этаж=200руб.)]]) -> 7400 | K27: 2009-10-27 | L27: 2009-11-02 | M27: =Таблица1[[#This Row],[Дата привоза]]-Таблица1[[#This Row],[Дата заказа]] -> 6 | V27: 20
A28: 32 | B28: Вася7 | C28: 24 | D28: =VLOOKUP(Таблица1[[#This Row],[Код товара]],Сборка,2) -> Шкафы распашные | E28: Кузнецов | F28: Петров | G28: ул.8д.10 | H28: =VLOOKUP(Таблица1[[#This Row],[Код товара]],Сборка,3) -> 4200 | I28: 10 | J28: =Таблица1[[#This Row],[Стоимость без учета этажа]]+(200*Таблица1[[#This Row],[Этаж(1этаж=200руб.)]]) -> 6200 | K28: 2009-10-07 | L28: 2009-10-15 | M28: =Таблица1[[#This Row],[Дата привоза]]-Таблица1[[#This Row],[Дата заказа]] -> 8 | V28: 21
A29: 33.2 | B29: Вася1 | C29: 25 | D29: =VLOOKUP(Таблица1[[#This Row],[Код товара]],Сборка,2) -> Мебель для библиотеки | E29: Кузнецов | F29: Меньшов | G29: ул.9д.4 | H29: =VLOOKUP(Таблица1[[#This Row],[Код товара]],Сборка,3) -> 5100 | I29: 10 | J29: =Таблица1[[#This Row],[Стоимость без учета этажа]]+(200*Таблица1[[#This Row],[Этаж(1этаж=200руб.)]]) -> 7100 | K29: 2009-10-12 | L29: 2009-10-18 | M29: =Таблица1[[#This Row],[Дата привоза]]-Таблица1[[#This Row],[Дата заказа]] -> 6 | V29: 22
A30: 34.4 | B30: Вася9 | C30: 25 | D30: =VLOOKUP(Таблица1[[#This Row],[Код товара]],Сборка,2) -> Мебель для библиотеки | E30: Баранова | F30: Петров | G30: ул.2д.5 | H30: =VLOOKUP(Таблица1[[#This Row],[Код товара]],Сборка,3) -> 5100 | I30: 9 | J30: =Таблица1[[#This Row],[Стоимость без учета этажа]]+(200*Таблица1[[#This Row],[Этаж(1этаж=200руб.)]]) -> 6900 | K30: 2009-10-06 | L30: 2009-10-17 | M30: =Таблица1[[#This Row],[Дата привоза]]-Таблица1[[#This Row],[Дата заказа]] -> 11 | V30: 23
A31: 35 | C31: 25 | D31: =VLOOKUP(Таблица1[[#This Row],[Код товара]],Сборка,2) -> Мебель для библиотеки | H31: =VLOOKUP(Таблица1[[#This Row],[Код товара]],Сборка,3) -> 5100 | J31: =Таблица1[[#This Row],[Стоимость без учета этажа]]+(200*Таблица1[[#This Row],[Этаж(1этаж=200руб.)]]) -> 5100 | K31: 2009-10-28 | L31: 2009-11-05 | M31: =Таблица1[[#This Row],[Дата привоза]]-Таблица1[[#This Row],[Дата заказа]] -> 8 | V31: 24
A32: 36 | C32: 19 | D32: =VLOOKUP(Таблица1[[#This Row],[Код товара]],Сборка,2) -> Детская мебель | H32: =VLOOKUP(Таблица1[[#This Row],[Код товара]],Сборка,3) -> 9500 | J32: =Таблица1[[#This Row],[Стоимость без учета этажа]]+(200*Таблица1[[#This Row],[Этаж(1этаж=200руб.)]]) -> 9500 | K32: 2009-10-02 | L32: 2009-10-10 | M32: =Таблица1[[#This Row],[Дата привоза]]-Таблица1[[#This Row],[Дата заказа]] -> 8 | V32: 25
A33: 37 | C33: 25 | D33: =VLOOKUP(Таблица1[[#This Row],[Код товара]],Сборка,2) -> Мебель для библиотеки | H33: =VLOOKUP(Таблица1[[#This Row],[Код товара]],Сборка,3) -> 5100 | J33: =Таблица1[[#This Row],[Стоимость без учета этажа]]+(200*Таблица1[[#This Row],[Этаж(1этаж=200руб.)]]) -> 5100 | K33: 2009-10-10 | L33: 2009-10-21 | M33: =Таблица1[[#This Row],[Дата привоза]]-Таблица1[[#This Row],[Дата заказа]] -> 11 | V33: 26
A34: 38 | C34: 25 | D34: =VLOOKUP(Таблица1[[#This Row],[Код товара]],Сборка,2) -> Мебель для библиотеки | H34: =VLOOKUP(Таблица1[[#This Row],[Код товара]],Сборка,3) -> 5100 | J34: =Таблица1[[#This Row],[Стоимость без учета этажа]]+(200*Таблица1[[#This Row],[Этаж(1этаж=200руб.)]]) -> 5100 | K34: 2009-10-19 | L34: 2009-11-05 | M34: =Таблица1[[#This Row],[Дата привоза]]-Таблица1[[#This Row],[Дата заказа]] -> 17
A35: 39 | C35: 23 | D35: =VLOOKUP(Таблица1[[#This Row],[Код товара]],Сборка,2) -> Гардеробные комнаты | H35: =VLOOKUP(Таблица1[[#This Row],[Код товара]],Сборка,3) -> 3000 | J35: =Таблица1[[#This Row],[Стоимость без учета этажа]]+(200*Таблица1[[#This Row],[Этаж(1этаж=200руб.)]]) -> 3000 | K35: 2009-10-04 | L35: 2009-10-16 | M35: =Таблица1[[#This Row],[Дата привоза]]-Таблица1[[#This Row],[Дата заказа]] -> 12 | V35: Баранова
A36: 40 | C36: 17 | D36: =VLOOKUP(Таблица1[[#This Row],[Код товара]],Сборка,2) -> Прихожие | H36: =VLOOKUP(Таблица1[[#This Row],[Код товара]],Сборка,3) -> 8000 | J36: =Таблица1[[#This Row],[Стоимость без учета этажа]]+(200*Таблица1[[#This Row],[Этаж(1этаж=200руб.)]]) -> 8000 | K36: 2009-10-11 | L36: 2009-10-18 | M36: =Таблица1[[#This Row],[Дата привоза]]-Таблица1[[#This Row],[Дата заказа]] -> 7 | V36: Гордеева
A37: 41 | C37: 20 | D37: =VLOOKUP(Таблица1[[#This Row],[Код товара]],Сборка,2) -> Мебель для спальни | H37: =VLOOKUP(Таблица1[[#This Row],[Код товара]],Сборка,3) -> 5000 | J37: =Таблица1[[#This Row],[Стоимость без учета этажа]]+(200*Таблица1[[#This Row],[Этаж(1этаж=200руб.)]]) -> 5000 | K37: 2009-10-28 | L37: 2009-11-04 | M37: =Таблица1[[#This Row],[Дата привоза]]-Таблица1[[#This Row],[Дата заказа]] -> 7 | V37: Кузнецов
A38: 42 | C38: 21 | D38: =VLOOKUP(Таблица1[[#This Row],[Код товара]],Сборка,2) -> Кровати в спальню | H38: =VLOOKUP(Таблица1[[#This Row],[Код товара]],Сборка,3) -> 13500 | J38: =Таблица1[[#This Row],[Стоимость без учета этажа]]+(200*Таблица1[[#This Row],[Этаж(1этаж=200руб.)]]) -> 13500 | M38: =Таблица1[[#This Row],[Дата привоза]]-Таблица1[[#This Row],[Дата заказа]] -> 0 | V38: Петров
A39: 43 | C39: 22 | D39: =VLOOKUP(Таблица1[[#This Row],[Код товара]],Сборка,2) -> Ванные комнаты | H39: =VLOOKUP(Таблица1[[#This Row],[Код товара]],Сборка,3) -> 6000 | J39: =Таблица1[[#This Row],[Стоимость без учета этажа]]+(200*Таблица1[[#This Row],[Этаж(1этаж=200руб.)]]) -> 6000 | M39: =Таблица1[[#This Row],[Дата привоза]]-Таблица1[[#This Row],[Дата заказа]] -> 0 | V39: Меньшов
A40: 44 | D40: =VLOOKUP(Таблица1[[#This Row],[Код товара]],Сборка,2) ->  | H40: =VLOOKUP(Таблица1[[#This Row],[Код товара]],Сборка,3) ->  | J40: =Таблица1[[#This Row],[Стоимость без учета этажа]]+(200*Таблица1[[#This Row],[Этаж(1этаж=200руб.)]]) ->  | M40: =Таблица1[[#This Row],[Дата привоза]]-Таблица1[[#This Row],[Дата заказа]] -> 0
A41: 45 | D41: =VLOOKUP(Таблица1[[#This Row],[Код товара]],Сборка,2) ->  | H41: =VLOOKUP(Таблица1[[#This Row],[Код товара]],Сборка,3) ->  | J41: =Таблица1[[#This Row],[Стоимость без учета этажа]]+(200*Таблица1[[#This Row],[Этаж(1этаж=200руб.)]]) ->  | M41: =Таблица1[[#This Row],[Дата привоза]]-Таблица1[[#This Row],[Дата заказа]] -> 0

Sheet Сотрудники
B6: Таб.№ | C6: Фамилия | D6: Имя | E6: Должность | F6: Оклад | G6: Дата рожд. | H6: Дети | I6: Адрес | J6: Телефон
B7: 100 | C7: Александров | D7: Алексей | E7: Директор | F7: 25000 | G7: 1965 | H7: 1 | I7: ул. Заовражная | J7: 231686
B8: 200 | C8: Иванов | D8: Валерий | E8: Главбух | F8: 15000 | G8: 1971 | H8: 2 | I8: ул. Ленина | J8: 451523
B9: 300 | C9: Баранова | D9: Ольга | E9: Дизайнер | F9: 10000 | G9: 1972 | H9: 0 | I9: ул. Горького | J9: 245417
B10: 400 | C10: Гордеева | D10: Светлана | E10: Дизайнер | F10: 10000 | G10: 1983 | H10: 2 | I10: ул. Заовражная | J10: 301922
B11: 500 | C11: Кузнецов | D11: Олег | E11: Дизайнер | F11: 10000 | G11: 1977 | H11: 1 | I11: ул. Яковлева | J11: 340439
B12: 600 | C12: Петров | D12: Петр | E12: Конструктор | F12: 8000 | G12: 1955 | H12: 1 | I12: ул. Лебедева | J12: 428831
B13: 700 | C13: Меньшов | D13: Сергей | E13: Конструктор | F13: 8000 | G13: 1963 | H13: 2 | I13: ул. Володарского | J13: 491528

Sheet Начисление з п
J3: Январь | M3: Февраль | P3: Март | S3: Апрель | V3: Май | Y3: Июнь | AB3: Июль | AE3: Август | AH3: Сентябрь | AK3: Октябрь | AN3: Ноябрь | AQ3: Декабрь
B4: Табл№ | C4: ФИО | D4: Начислено | E4: Удержано | F4: К выдаче | G4: Дети | H4: Сумма | I4: На детей | J4: кол-во рабочих дней | K4: кол-во отработанных | L4: К выдаче | M4: кол-во рабочих дней | N4: кол-во отработанных | O4: К выдаче | P4: кол-во рабочих дней | Q4: кол-во отработанных | R4: К выдаче | S4: кол-во рабочих дней | T4: кол-во отработанных | U4: К выдаче | V4: кол-во рабочих дней | W4: кол-во отработанных | X4: К выдаче | Y4: кол-во рабочих дней | Z4: кол-во отработанных | AA4: К выдаче | AB4: кол-во рабочих дней | AC4: кол-во отработанных | AD4: К выдаче | AE4: кол-во рабочих дней | AF4: кол-во отработанных | AG4: К выдаче | AH4: кол-во рабочих дней | AI4: кол-во отработанных | AJ4: К выдаче | AK4: кол-во рабочих дней | AL4: кол-во отработанных | AM4: К выдаче | AN4: кол-во рабочих дней | AO4: кол-во отработанных | AP4: К выдаче | AQ4: кол-во рабочих дней | AR4: кол-во отработанных | AS4: К выдаче
B5: =Сотрудники!B7 -> 100 | C5: =Сотрудники!C7&" "&LEFT(Сотрудники!D7)&"." -> Александров А. | D5: =Сотрудники!F7 -> 25000 | E5: =IF(H5<280000,(D5-I5)*0.13,D5*0.13) -> 1794 | F5: =D5-E5 -> 23206 | G5: =Сотрудники!H7 -> 1 | H5: =$T$41*D5 -> 0 | I5: =IF(G5<3,G5*1400,2800+(G5-2)*3000)*8 -> 11200 | J5: 23 | K5: 20 | L5: =D5*(K5/J5) -> 21739.13043 | M5: 20 | N5: 19 | O5: =D5*(N5/M5) -> 23750 | P5: 23 | Q5: 23 | R5: =D5*(Q5/P5) -> 25000 | S5: 23 | T5: 22 | U5: =D5*(T5/S5) -> 23913.04348 | V5: 23 | W5: 23 | X5: =D5*(W5/V5) -> 25000 | Y5: 23 | Z5: 22 | AA5: =D5*(Z5/Y5) -> 23913.04348 | AB5: 23 | AC5: 23 | AD5: =D5*(AC5/AB5) -> 25000 | AE5: 23 | AF5: 22 | AG5: =D5*(AF5/AE5) -> 23913.04348 | AH5: 23 | AI5: 23 | AJ5: =D5*(AI5/AH5) -> 25000 | AK5: 23 | AL5: 23 | AM5: =D5*(AL5/AK5) -> 25000 | AN5: 23 | AO5: 23 | AP5: =D5*(AO5/AN5) -> 25000 | AQ5: 23 | AR5: 22 | AS5: =D5*(AR5/AQ5) -> 23913.04348
B6: =Сотрудники!B8 -> 200 | C6: =Сотрудники!C8&" "&LEFT(Сотрудники!D8)&"." -> Иванов В. | D6: =Сотрудники!F8 -> 15000 | E6: =IF(H6<280000,(D6-I6)*0.13,D6*0.13) -> -962 | F6: =D6-E6 -> 15962 | G6: =Сотрудники!H8 -> 2 | H6: 0 | I6: =IF(G6<3,G6*1400,2800+(G6-2)*3000)*8 -> 22400 | J6: 23 | K6: 23 | L6: =D6*(K6/J6) -> 15000 | M6: 20 | N6: 19 | O6: =D6*(N6/M6) -> 14250 | P6: 23 | Q6: 22 | R6: =D6*(Q6/P6) -> 14347.82609 | S6: 23 | T6: 17 | U6: =D6*(T6/S6) -> 11086.95652 | V6: 23 | W6: 23 | X6: =D6*(W6/V6) -> 15000 | Y6: 23 | Z6: 22 | AA6: =D6*(Z6/Y6) -> 14347.82609 | AB6: 23 | AC6: 23 | AD6: =D6*(AC6/AB6) -> 15000 | AE6: 23 | AF6: 22 | AG6: =D6*(AF6/AE6) -> 14347.82609 | AH6: 23 | AI6: 23 | AJ6: =D6*(AI6/AH6) -> 15000 | AK6: 23 | AL6: 23 | AM6: =D6*(AL6/AK6) -> 15000 | AN6: 23 | AO6: 23 | AP6: =D6*(AO6/AN6) -> 15000 | AQ6: 23 | AR6: 22 | AS6: =D6*(AR6/AQ6) -> 14347.82609
B7: =Сотрудники!B9 -> 300 | C7: =Сотрудники!C9&" "&LEFT(Сотрудники!D9)&"." -> Баранова О. | D7: =Сотрудники!F9 -> 10000 | E7: 1300 | F7: 8700 | G7: =Сотрудники!H9 -> 0 | H7: 0 | I7: 0 | J7: 23 | K7: 23 | L7: 10000 | M7: 20 | N7: 19 | O7: 9500 | P7: 23 | Q7: 22 | R7: 9565.217391 | S7: 23 | T7: 23 | U7: 10000 | V7: 23 | W7: 23 | X7: 10000 | Y7: 23 | Z7: 23 | AA7: 10000 | AB7: 23 | AC7: 22 | AD7: 9565.217391 | AE7: 23 | AF7: 22 | AG7: 9565.217391 | AH7: 23 | AI7: 17 | AJ7: 7391.304348 | AK7: 23 | AL7: 23 | AM7: 10000 | AN7: 23 | AO7: 23 | AP7: 10000 | AQ7: 23 | AR7: 23 | AS7: 10000
B8: =Сотрудники!B10 -> 400 | C8: =Сотрудники!C10&" "&LEFT(Сотрудники!D10)&"." -> Гордеева С. | D8: =Сотрудники!F10 -> 10000 | E8: -1612 | F8: 11612 | G8: =Сотрудники!H10 -> 2 | H8: 0 | I8: 22400 | J8: 23 | K8: 21 | L8: 9130.434783 | M8: 20 | N8: 19 | O8: 9500 | P8: 23 | Q8: 23 | R8: 10000 | S8: 23 | T8: 23 | U8: 10000 | V8: 23 | W8: 23 | X8: 10000 | Y8: 23 | Z8: 23 | AA8: 10000 | AB8: 23 | AC8: 22 | AD8: 9565.217391 | AE8: 23 | AF8: 22 | AG8: 9565.217391 | AH8: 23 | AI8: 17 | AJ8: 7391.304348 | AK8: 23 | AL8: 23 | AM8: 10000 | AN8: 23 | AO8: 23 | AP8: 10000 | AQ8: 23 | AR8: 23 | AS8: 10000
B9: =Сотрудники!B11 -> 500 | C9: =Сотрудники!C11&" "&LEFT(Сотрудники!D11)&"." -> Кузнецов О. | D9: =Сотрудники!F11 -> 10000 | E9: -156 | F9: 10156 | G9: =Сотрудники!H11 -> 1 | H9: 0 | I9: 11200 | J9: 23 | K9: 23 | L9: 10000 | M9: 20 | N9: 20 | O9: 10000 | P9: 23 | Q9: 23 | R9: 10000 | S9: 23 | T9: 23 | U9: 10000 | V9: 23 | W9: 23 | X9: 10000 | Y9: 23 | Z9: 23 | AA9: 10000 | AB9: 23 | AC9: 22 | AD9: 9565.217391 | AE9: 23 | AF9: 21 | AG9: 9130.434783 | AH9: 23 | AI9: 23 | AJ9: 10000 | AK9: 23 | AL9: 23 | AM9: 10000 | AN9: 23 | AO9: 23 | AP9: 10000 | AQ9: 23 | AR9: 17 | AS9: 7391.304348
B10: =Сотрудники!B12 -> 600 | C10: =Сотрудники!C12&" "&LEFT(Сотрудники!D12)&"." -> Петров П. | D10: =Сотрудники!F12 -> 8000 | E10: -416 | F10: 8416 | G10: =Сотрудники!H12 -> 1 | H10: 0 | I10: 11200 | J10: 23 | K10: 20 | L10: 6956.521739 | M10: 20 | N10: 20 | O10: 8000 | P10: 23 | Q10: 22 | R10: 7652.173913 | S10: 23 | T10: 23 | U10: 8000 | V10: 23 | W10: 23 | X10: 8000 | Y10: 23 | Z10: 22 | AA10: 7652.173913 | AB10: 23 | AC10: 23 | AD10: 8000 | AE10: 23 | AF10: 21 | AG10: 7304.347826 | AH10: 23 | AI10: 23 | AJ10: 8000 | AK10: 23 | AL10: 23 | AM10: 8000 | AN10: 23 | AO10: 23 | AP10: 8000 | AQ10: 23 | AR10: 17 | AS10: 5913.043478
B11: =Сотрудники!B13 -> 700 | C11: =Сотрудники!C13&" "&LEFT(Сотрудники!D13)&"." -> Меньшов С. | D11: =Сотрудники!F13 -> 8000 | E11: -1872 | F11: 9872 | G11: =Сотрудники!H13 -> 2 | H11: 0 | I11: 22400 | J11: 23 | K11: 23 | L11: 8000 | M11: 20 | N11: 18 | O11: 7200 | P11: 23 | Q11: 23 | R11: 8000 | S11: 23 | T11: 17 | U11: 5913.043478 | V11: 23 | W11: 23 | X11: 8000 | Y11: 23 | Z11: 22 | AA11: 7652.173913 | AB11: 23 | AC11: 23 | AD11: 8000 | AE11: 23 | AF11: 21 | AG11: 7304.347826 | AH11: 23 | AI11: 23 | AJ11: 8000 | AK11: 23 | AL11: 23 | AM11: 8000 | AN11: 23 | AO11: 23 | AP11: 8000 | AQ11: 23 | AR11: 22 | AS11: 7652.173913

Sheet Отчеты
C4: Отчетный период | J4: Наименование | K4: Количество | L4: Наименование | M4: Количество | N4: Остаток
J5: Стяжки | K5: 89 | L5: Стяжки | M5: 82 | N5: =K5-M5 -> 7
C6: Начало периода | D6: 2009-10-10 | J6: Полкодержатели | K6: 159 | L6: Полкодержатели | M6: 121 | N6: =K6-M6 -> 38
C7: Конец периода | D7: 2009-10-20 | J7: Петли | K7: 159 | L7: Петли | M7: 153 | N7: 6 | Q7: Дата продажи | R7: Дата продажи
J8: Ручки | K8: 166 | L8: Ручки | M8: 163 | N8: 3 | Q8: =">="&D6 -> >=40096 | R8: ="<="&D7 -> <=40106
J9: Крючки | K9: 318 | L9: Крючки | M9: 117 | N9: 201
J10: Замки | K10: 226 | L10: Замки | M10: 152 | N10: 74
J11: Системы для выдвижных ящиков | K11: 175 | L11: Системы для выдвижных ящиков | M11: 161 | N11: 14 | U11: - общая сумма выручки;
D12: =DMIN(Данные_продаж,Продажи!H11,Q7:R8) -> 100 | J12: Навесы для мебельных коробов | K12: 146 | L12: Навесы для мебельных коробов | M12: 146 | N12: 0 | U12: - средняя выручка;
J13: Механизмы для раздвижных столов | K13: 263 | L13: Механизмы для раздвижных столов | M13: 219 | N13: 44 | U13: - максимальная выручка;
J14: Стеллажные и гардеробные системы | K14: 138 | L14: Стеллажные и гардеробные системы | M14: 136 | N14: 2 | U14: - минимальная выручка
J15: Кухонные комплектующие | K15: 177 | L15: Кухонные комплектующие | M15: 175 | N15: 2 | U15: 4
J16: Раздвижные системы для шкафов-купе | K16: 135 | L16: Раздвижные системы для шкафов-купе | M16: 134 | N16: 1
J17: Наполнение для шкафов | K17: 160 | L17: Наполнение для шкафов | M17: 130 | N17: 30
J18: Раздвижные системы для межкомнатных дверей | K18: 216 | L18: Раздвижные системы для межкомнатных дверей | M18: 205 | N18: 11
J19: Мебельное освещение | K19: 367 | L19: Мебельное освещение | M19: 355 | N19: 12
J20: Кромочные материалы | K20: 174 | L20: Кромочные материалы | M20: 161 | N20: 13
D22: Значения | J22: Прихожие | K22: 88 | L22: Прихожие | M22: 87 | N22: 1
C23: Названия строк | D23: Сумма по полю Количество | E23: Сумма по полю Сумма | J23: Стенки мебельные | K23: 205 | L23: Стенки мебельные | M23: 205 | N23: 0
C24: Раздвижные системы для межкомнатных дверей | D24: 205 | E24: 615000 | J24: Детская мебель | K24: 175 | L24: Детская мебель | M24: 175 | N24: 0
C25: Ванные комнаты | D25: 175 | E25: 1050000 | J25: Мебель для спальни | K25: 174 | L25: Мебель для спальни | M25: 173 | N25: 1
C26: Гардеробные комнаты | D26: 126 | E26: 378000 | J26: Кровати в спальню | K26: 156 | L26: Кровати в спальню | M26: 156 | N26: 0
C27: Детская мебель | D27: 175 | E27: 1662500 | J27: Ванные комнаты | K27: 176 | L27: Ванные комнаты | M27: 175 | N27: 1
C28: Замки | D28: 152 | E28: 9120 | J28: Гардеробные комнаты | K28: 128 | L28: Гардеробные комнаты | M28: 126 | N28: 2
C29: Коммерческая мебель | D29: 981 | E29: 13734000 | J29: Шкафы распашные | K29: 115 | L29: Шкафы распашные | M29: 114 | N29: 1
C30: Кровати в спальню | D30: 156 | E30: 2106000 | J30: Мебель для библиотеки | K30: 191 | L30: Мебель для библиотеки | M30: 191 | N30: 0
C31: Кромочные материалы | D31: 161 | E31: 17710 | J31: Коммерческая мебель | K31: 985 | L31: Коммерческая мебель | M31: 981 | N31: 4
C32: Крючки | D32: 117 | E32: 46800
C33: Кухонные комплектующие | D33: 175 | E33: 140000
C34: Мебель для библиотеки | D34: 191 | E34: 974100
C35: Мебель для спальни | D35: 173 | E35: 865000
C36: Мебельное освещение | D36: 355 | E36: 276900
C37: Механизмы для раздвижных столов | D37: 219 | E37: 65700
C38: Навесы для мебельных коробов | D38: 146 | E38: 43800
C39: Наполнение для шкафов | D39: 130 | E39: 19500
C40: Петли | D40: 153 | E40: 38250
C41: Полкодержатели | D41: 121 | E41: 24200
C42: Прихожие | D42: 87 | E42: 696000
C43: Раздвижные системы для шкафов-купе | D43: 134 | E43: 29480
C44: Ручки | D44: 163 | E44: 81500
C45: Системы для выдвижных ящиков | D45: 161 | E45: 49910
C46: Стеллажные и гардеробные системы | D46: 136 | E46: 68000
C47: Стенки мебельные | D47: 205 | E47: 2460000
C48: Стяжки | D48: 82 | E48: 8200
C49: Шкафы распашные | D49: 114 | E49: 478800
C50: Общий итог | D50: 4993 | E50: 25938470

Sheet План закупок (hidden)
C4: Код товара | D4: Код поставщика | E4: Количество | F4: Сумма
C5: 1 | D5: 1 | E5: 200 | F5: =E5*(ЦенаПоставки(C5,D5)) -> 7000
C6: 2 | D6: 1 | E6: 100 | F6: 15000
C7: 8 | D7: 1 | E7: 150 | F7: 45000
C8: 14 | D8: 1 | E8: 150 | F8: 6750
C9: 17 | D9: 1 | E9: 30 | F9: 26700
C10: 24 | D10: 1 | E10: 30 | F10: 60000
C11: 25 | D11: 1 | E11: 30 | F11: 153000
C12: 3 | D12: 2 | E12: 150 | F12: 37500
C13: 9 | D13: 2 | E13: 150 | F13: 45000
C14: 21 | D14: 2 | E14: 30 | F14: 15600
C15: 22 | D15: 2 | E15: 30 | F15: 81000
C16: 4 | D16: 3 | E16: 150 | F16: 13500
C17: 12 | D17: 3 | E17: 150 | F17: 33000
C18: 16 | D18: 3 | E18: 200 | F18: 22000
C19: 18 | D19: 3 | E19: 30 | F19: 16800
C20: 23 | D20: 3 | E20: 30 | F20: 53400
C21: 5 | D21: 4 | E21: 150 | F21: 60000
C22: 6 | D22: 4 | E22: 150 | F22: 9000
C23: 10 | D23: 4 | E23: 150 | F23: 75000
C24: 11 | D24: 4 | E24: 150 | F24: 10500
C25: 7 | D25: 5 | E25: 150 | F25: 46500
C26: 13 | D26: 5 | E26: 150 | F26: =E26*ЦенаПоставки(C26,D26) -> 22500
C27: 15 | D27: 5 | E27: 200 | F27: =E27*(ЦенаПоставки(C27,D27)) -> 10000
C28: 19 | D28: 5 | E28: 30 | F28: 36000
C29: 20 | D29: 5 | E29: 30 | F29: 31500
C30: 29 | D30: 6 | E30: 50 | F30: 63000
C31: 30 | D31: 6 | E31: 60 | F31: 58800
C32: 31 | D32: 6 | E32: 70 | F32: 45500
C33: 26 | D33: 7 | E33: 100 | F33: 19500
C34: 27 | D34: 7 | E34: 100 | F34: 19500
C35: 28 | D35: 7 | E35: 100 | F35: 25000

Sheet Прайс-лист (hidden)
C4: Код товара | D4: Код поставщика | E4: Оптовая цена
C5: 1 | D5: 1 | E5: 35
C6: 2 | D6: 1 | E6: 150
C7: 8 | D7: 1 | E7: 300
C8: 14 | D8: 1 | E8: 45
C9: 17 | D9: 1 | E9: 890
C10: 24 | D10: 1 | E10: 2000
C11: 25 | D11: 1 | E11: 5100
C12: 3 | D12: 2 | E12: 250
C13: 9 | D13: 2 | E13: 300
C14: 21 | D14: 2 | E14: 520
C15: 22 | D15: 2 | E15: 2700
C16: 4 | D16: 3 | E16: 90
C17: 12 | D17: 3 | E17: 220
C18: 16 | D18: 3 | E18: 110
C19: 18 | D19: 3 | E19: 560
C20: 23 | D20: 3 | E20: 1780
C21: 5 | D21: 4 | E21: 400
C22: 6 | D22: 4 | E22: 60
C23: 10 | D23: 4 | E23: 500
C24: 11 | D24: 4 | E24: 70
C25: 7 | D25: 5 | E25: 310
C26: 13 | D26: 5 | E26: 150
C27: 15 | D27: 5 | E27: 50
C28: 19 | D28: 5 | E28: 1200
C29: 20 | D29: 5 | E29: 1050
C30: 29 | D30: 6 | E30: 1260
C31: 30 | D31: 6 | E31: 980
C32: 31 | D32: 6 | E32: 650
C33: 26 | D33: 7 | E33: 195
C34: 27 | D34: 7 | E34: 195
C35: 28 | D35: 7 | E35: 250

Sheet Доступ
A4: Номер листа | B4: Название | C4: Директор | D4: Бухгалтер | E4: Дизайнер,конструктор | F4: Системный администратор
B5: Пароль | C5: a | D5: b | E5: c | F5: d
A6: 1 | B6: Заставка | C6: 1 | D6: 1 | E6: 1 | F6: 2
A7: 2 | B7: Меню | C7: 1 | D7: 1 | E7: 1 | F7: 2
A8: 3 | B8: Товары | C8: 1 | D8: 1 | E8: 2 | F8: 2
A9: 4 | B9: Продажи | C9: 1 | D9: 1 | E9: 2 | F9: 2
A10: 5 | B10: Поставки | C10: 1 | D10: 1 | E10: 2 | F10: 2
A11: 6 | B11: Поставщики | C11: 1 | D11: 1 | E11: 2 | F11: 2
A12: 7 | B12: Сотрудники | C12: 1 | D12: 2 | E12: 0 | F12: 2
A13: 8 | B13: Начисление зп | C13: 1 | D13: 2 | E13: 0 | F13: 2
A14: 9 | B14: Отчеты | C14: 1 | D14: 2 | E14: 1 | F14: 2
A15: 10 | B15: Доступ | C15: 0 | D15: 0 | E15: 0 | F15: 2
